Workbook

Sheet How to input data
B1: How to input data
B3: 1. Introduction
C4: This file was created for the purpose of compiling monitoring data for microplastics at the ocean surface.
C5: The data items are those that should be reported in the Guidelines for Harmonizing Ocean Surface Microplastic Monitoring Methods (Version 1.2).
C6: This Data Entry Form provides the format that can be used for registering data in the Marine Plastic Litter Mapping Database.
C7: As a general rule, the data provider is requested to enter data into each of the 5 sheets: "Data Set Info.," "Field Survey," "Laboratory Analysis," "Results" and "Remarks".
C8: In the file containing the macro program, the data entered above are automatically listed on the "List" sheet and converted to a format in which they can be registered in the database.
C9: The software also has a data-checking function.
C10: The procedure from data entry to registration in the database is as follows.
B41: 2. Entering the Data
B42: 2-1. "Data Set Info."sheet
C43: As with all data you enter, enter the value in the blue cell.
C44: Note 1: | D44: If you want to enter multiple survey data items, please use a separate "Data Set Info." sheet for each individual data input item.
C45: Note 2: | D45: Be sure to enter "Data Owner/Observer (Name)". If you fail to enter it, the listing and data check cannot be performed correctly.
B47: 2-2. "Field Survey" sheet and "Laboratory Analysis" sheet
C48: Please fill in the green or blue cells.
C49: If you want to enter the same value for all samples, please enter it in the green cell.
C50: If you want to enter different values for each sample, please enter them in the blue cells.
C51: Note 3: | D51: If a value is entered in both the green and blue cells, samples with a value entered in the blue cell will have that value, and samples without a value in the blue cell will have the value in the green cell.
C52: Note 4: | D52: Be sure to enter values for all samples in the "Sample name/ID" field on the "Field Survey" sheet. If you fail to enter them, the listing and data check cannot be performed correctly.
D53: If a name or ID is entered into "Sample ID/Name" on the "Field Survey" sheet, the same ID or name will be automatically displayed on the "Laboratory Analysis," "Results" and "Remarks" sheets.
B55: 2-3. "Results" sheet
C56: Please fill in the blue cells.
C57: The white cells between the blue cells automatically display the total value.
B59: 2-4. "Remarks" sheet
C60: Please fill in the green or blue cells.
C61: If you want to enter the same value for all samples, please enter it into the green cell.
C62: In the blue cells, enter the values you want to add for each individual sample in addition to the values you entered in the green cells.
B64: 2-5. Precautions in data entry
C65: Note 5: | D65: The data to be entered must be half-width alphanumeric characters. Please do not use double-byte characters. Also, please use English as a common language, as it will be registered in a database intended for worldwide distribution.
C66: Note 6: | D66: Please enter decimal points as "." (period). Please do not use "," (comma) as a decimal point.
C67: Note 7: | D67: The meanings of the symbols in the "Category" column of the "Field Survey", "Laboratory Analysis" and "Results" sheets are as follows.
D68: ・FA, FB and FC represent “fundamental” items. The “fundamental” items are the minimum requirement to identify the abundance of microplastics, the sampling time and location, and microplastic density, which can be displayed in any of the following four units: number of particles/m3 or km2, weight/m3 or km2.
D69: FA: All of the “FA” items are necessary for displaying density.
D70: FB: At least one (1) item in “FB” is necessary for displaying density. The symbol * (asterisk) with FB indicates that some additional items from among the “FC” items are necessary for calculating microplastic density.
D71: ・The letter “E” represents “essential” items, which are the minimum requirements to make survey results comparable.
D72: ・The items with no letter in the " Category " column are those that may be obtained optionally, depending on the specific purpose of individual surveys or instrument availability.
D73: The Guidelines recommend reporting all obtained data, including metadata.
D74: If the format of the data you want to enter does not match the style specified in the input field, please enter a remark to that effect in the"Remarks"sheet together with the item's name.
B76: 3. Listing the Data
C77: After you have entered all data that can be entered, press the "1. Make list" button on the "List" sheet.
C78: The data entered into the five sheets of "Data Set Info.," "Field Survey," "Laboratory Analysis," "Results," and "Remarks" are integrated to create a list that matches the items in the database.
B80: 4. Formatting
C81: Please press the "2. Format" button on the "List" sheet to convert the data format into one that can be stored in the database.
C82: Date data are converted to a YYYY-MM-DD format, and time data are converted to an hh:mm:ss format.
C83: Other numeric data are rounded to the number of significant digits specified by the database.
C84: If text data are entered in a date or time field, which requires a numerical value, a text message saying "The item mon the left ust be numerical (or YYYY- MM-DD / hh:mm:ss)" is displayed in red in the QC code cell to the right of it. Please correct it accordingly.
C85: If the maximum number of characters specified in the database is exceeded, a text message saying "The number of characters must be XXX or less." is displayed in red in the QC code column to the right of the item. Please correct it accordingly.
C86: When correcting data, please be sure to correct the values in each data entry field of the "Data Set Info.," "Field Survey," "Laboratory Analysis," "Results" and "Remarks" sheets.
C87: After completing correction of a data entry field in the "Data Set Info.," "Field Survey," "Laboratory Analysis," "Results" or "Remarks" sheets, please click and run "1. Make list" and "2. Format" again.
C88: Note 8: | D88: Please do not modify the values in the "List" sheet directly.
D89: Please note that the results of correcting data in the "List" sheet are not reflected in the "Data Set Info.," "Field Survey," "Laboratory Analysis," "Results" or "Remarks" sheets.
D90: Also, if you execute "1. Make list" after correcting the data in the "List" sheet, the data will return to their uncorrectled state in the "List" sheet as well.
B92: 5. Data Checking
C93: Data checking is divided into 3 steps, which are "3. Data check 1," "4. Data check 2," and other visual checks ("5. QC code").
C94: Please refer to "Marine Plastic Litter Mapping Database, Data Check Manual ver. 2.0" for details on the data check.
C95: "3. Data check 1" is for the items entered in the "Data Set Info.," "Field Survey" and "Laboratory Analysis" sheets.
C96: "4. Data check 2" is basically for the items entered in the "Results" sheet.
C97: "3. Data check 1" and "4. Data check 2" check the contents and are able to automatically judge whether there are any errors or not.
C98: First, please press the "3. Data check 1" button to execute this first, and then press the "4. Data check 2" button to execute that second.
C99: When "3. Data check 1" and "4. Data check 2" are executed, a QC code other than 4 among the following is assigned to the QC code cell to the right of the checked data.
D101: QC code | E101: Description
D102: 0 | E102: No errors
D103: 1 | E103: Logically improbable value
D104: 2 | E104: Values showing inconsistency between data
D105: 3 | E105: Deviated value compared to other existing data (values that have not been checked with the data provider）
D106: 4 | E106: Deviated value compared to other existing data (checked with the data provider, and value confirmed as an outlier）
D107: 5 | E107: Value added by the database administrator after converting units from provided data only
D108: 6 | E108: Value can be added by the data provider from other data items
C110: In addition, the check results are displayed on the "Check" sheet.
C111: Please refer to the check results shown on the "Check" sheet and correct the data as necessary.
C112: In addition, you can correct the data without executing "3. Data check 1" and without executing "4. Data check 2".
C113: If the data have a QC code of 1, 2 or 3 on the right, but are not corrected for some reason, please enter the reason for that in "Remarks".
C114: For data with QC Code 5 assigned to the right, if you as the data provider judge it as appropriate, please delete QC code 5 from the "List" sheet. It will be treated as data provided by the data provider.
C115: When correcting data, please be sure to correct the values in each data entry field of the "Data Set Info.," "Field Survey," "Laboratory Analysis," "Results" and "Remarks" sheets.
C116: After completing the correction of a data entry field in the "Data Set Info.," "Field Survey," "Laboratory analysis," "Results" or "Remarks" sheets, please click and run "1. Make list" and "2. Format" again
C117: Note 10: | D117: Please do not modify the values in the "List" sheet directly.
D118: Please note that the results of correcting data in the "List" sheet are not reflected in the "Data Set Info.," "Field Survey," "Laboratory Analysis," "Results" or "Remarks" sheets.
D119: Also, if you execute "1. Make list" after correcting the data in the "List" sheet, the data will return to their uncorrectled state in the "List" sheet as well.
C120: Please conduct visual checks, referring to the Check Manual as well, including data with a QC code of 1, 2 or 3 on the right field of "3. Data check 1" and "4. Data check 2."
B122: 6. Adding and Changing QC Codes
C123: After completing all of the above checks, execute "5. QC code." QC Code 0 is assigned to items among the input data that do not have a QC code to the right.
C124: If you have no correction for a value assigned QC Code 3, change it to QC Code 4.
B126: 7. Assignment of Data Grades
C127: When the "6. Data grade" button is pressed, a data grade of 2 to 4 will be assigned.
C128: Note 11: | D128: Data grades are on a scale of 1 to 5. They indicate whether or not the data are harmonized in light of the Guidelines. Their meanings are as follows.
D130: Data Grade | E130: Value Description
D131: 1 | E131: Initial data
D132: 2 | E132: Data with codes for quality control (The abundance, sampling time and sampling location cannot be displayed on the map if no laboratory analysis has been performed since they are cruise summary data.)
D133: 3 | E133: A data record displaying the amount of microplastics present, the time and location of sampling on a map (with the necessary "fundamental data items" entered)
D134: 4 | E134: Data include all “essential data items”
D135: 5 | E135: A data record resulting from research conducted in a harmonized manner
C137: Data Grade 4 data records shall be checked by the database administrator to see if the values are in the range recommended by the Guidelines, and upgraded to Data Grade 5 if they are found suitable for that.

Sheet Data set info.
C3: Data set information
C4: Item | E4: Item ID | F4: Data entry field | G4: Description of data item | H4: Example
C5: Data contributer (Name) | E5: 0004 | G5: The name of the person who provided the relevant data record. If the data was registered from a published document and there is more than one author, the name of the first author is listed. | H5: YAMADA, Taro
C6: Organization | D6: Name (Organization) | E6: 0009 | G6: The name of the institution to which the person listed in #0004 belongs. | H6: Ministry of the Environment Japan
D7: Region (Location) | E7: 0006 | G7: The name of the country or region where the organization to which the person listed in #0004 belongs is located. The country or region is the English name of ISO 3166-1. | H7: Japan
D8: Type of Organization (Location code) | E8: 0011 | G8: Type of provider（1: University, 2: Other Research Institution, 3: Administrative Institution, 4: Educational Institution other than University, 5: NPO/NGO, 6: Other, respectively） | H8: University
C9: Reference | D9: Refernce | E9: 0014 | G9: Source of the material in which this data record appears. | H9: MOEJ, Report on a survey of microplastics in coastal waters(2021)
D10: DOI | E10: 0016 | G10: DOI (Digital Object Identifier) for #0014. | H10: https://doi.org/XXXXXXXXX
C11: Creative commons license | E11: 0018 | G11: Terms of Use. You can check the meaning of symbol (https://creativecommons.org/) | H11: CC BY 4.0

Sheet Field Survey
C3: Field Survey
C4: Item | E4: Item ID | F4: Description of data item | G4: Example | H4: Category | I4: Data entry field
I5: All samples | J5: Each samples
C6: Cruise name | E6: 0012 | F6: Name of voyage when the sample was taken. | G6: Japanese off-shore
C7: Sampling ship | D7: Ship name | E7: 0053 | F7: Name of vessel used for sample collection. | G7: Kiraku-maru
D8: Code | E8: 0055 | F8: Code of vessel used to collect the sample: either the vessel's registration number or the vessel's radio station call sign. | G8: XXXXXX
C9: Sampling equipment | D9: Type of equipment | E9: 0056 | F9: Name of instrument used to collect the sample, including the name of the net, such as Newston net or Manta net, and methods other than net sampling, such as pump sampling or bulk sampling. | G9: Neuston net | H9: E
D10: Model number and manufacturer (Equipment Model) | E10: 0058 | F10: Model of instrument used to collect the sample. | G10: JMA Neuston net, No.5552
D11: Shape of water intake | E11: 0060 | F11: Shape of sample collection port. | G11: Rectangular | H11: E
D12: Width of water intake (Unit: m) | E12: 0062 | F12: Width of the sampling port, in meters. | G12: 0.75 | H12: FC / E
D13: Height of water intake (Unit: m) | E13: 0064 | F13: Height of sampling port, in meters. If the top of the sampling port is above the sea surface, this will be greater than the depth from the sea surface to the bottom of the sampling port. If the shape of the sampling port (#0060) is square or circular, this will be equal to the width of the sampling port (#0062). | G13: 0.75 | H13: E
D14: Area of water intake (Unit: m2) | E14: 0066 | F14: Height of sampling port, in meters. If the shape of the sampling port (#0060) is square or rectangular, the value is obtained by multiplying the width of the sampling port (#0062) by the height of the sampling port (#0064), and if the shape of the sampling port (#0060) is circular, the value is obtained as the area of a circle whose diameter is the width (#0062) or height (#0064) of the sampling port. | G14: =G13*G12 -> 0.5625 | H14: E
D15: Length of net (Unit: m) | E15: 0068 | F15: Length from the opening of the net to the very end of the net. If a sample collection device such as a cod-end is attached to the very end of the net, its length is not included. | G15: 3 | H15: E
D16: Mesh openings size (Unit: mm) | E16: 0070 | F16: Length of the open part of each stitch in the net. This does not include the length of the part closed as the mesh thread. The unit is mm. The Guidelines recommend a length of about 0.3 mm. | G16: 0.35 | H16: E
D17: Measurement point of 'Mesh openings size' (Mesh Side or diagonal) | E17: 0072 | F17: Whether the length of the mesh eye opening (#0070) is the length of the sides of the mesh or the length of the diagonal. | G17: One side | H17: E
D18: Model number and manufacturer of mesh (Mesh Model) | E18: 0074 | F18: Net model number, standard, etc. | G18: net fabric nip
C19: Sampling gear position | D19: Sampling gear position | E19: 0094 | F19: Location of sampling device relative to the research vessel. The guideline recommends that the sampling device be installed forward of the vessel, avoiding locations where towing waves are generated. | G19: Side | H19: E
D20: Distance from vessel (Unit: m) | E20: 0096 | F20: Distance of sampling device from the research vessel, in meters. | G20: 3 | H20: E
C21: Sample name/ ID | E21: 0029 | F21: Name of sample taken for monitoring, or its ID. | G21: Towing No.99
C22: Sampling time | D22: Time difference from GMT (h) | E22: 0031 | F22: Time difference from GMT (Greenwich Mean Time) of the times entered in #0037 and #0039. | G22: The above times - 9 h = GMT | H22: E
D23: Start date (YYYY-MM-DD) | E23: 0033 | F23: Start date of sample collection. | G23: 2018-09-19 | H23: FA / E
D24: Ene date (YYYY-MM-DD) | E24: 0035 | F24: Date of completion of sample collection. | G24: 2018-09-19 | H24: E
D25: Start time (hh:mm:ss) | E25: 0037 | F25: Start time of sample collection.（24 hour notation） | G25: 15:00:00 | H25: E
D26: End time (hh:mm:ss) | E26: 0039 | F26: End time of sample collection.（24 hour notation） | G26: 15:20:00 | H26: E
D27: Season | E27: 0041 | F27: Season in which the sample was taken. | G27: Summer | H27: E
C28: Sampling Location | D28: Sampling Location Name | E28: 0043 | F28: Name of water body from which the sample was taken. | G28: Toyama Bay | H28: E
D29: Initial latitude (Latitude of start (decimal number)) | E29: 0045 | F29: Latitudinal coordinates at the start of the sample collection, with positive values for north latitude and negative values for south latitude. | G29: 39.76722222 | H29: FA / E
D30: Initial longitude (Longitude of start (decimal number)) | E30: 0047 | F30: Longitude coordinates at the start of the sample collection, with positive values for east longitude and negative values for west longitude. | G30: 8.043611111 | H30: FA / E
D31: Final latitude (Latitude of end (decimal number)) | E31: 0049 | F31: Latitudinal coordinates at the end of the sampling, with positive values for north latitude and negative values for south latitude. | G31: 39.75638889 | H31: E
D32: Final longitude (Longitude of endt (decimal number)) | E32: 0051 | F32: Longitude coordinates at the end of the sample collection, with positive values for east longitude and negative values for west longitude. | G32: 8.043055556 | H32: E
C33: Sampling distance | D33: Sweep distance (Unit: m) (Sampling_Distance (m)) | E33: 0076 | F33: Distance towed, in meters. The Guidelines recommend that it be determined by means of a filtration meter as the distance of seawater passing through the sampling port. | G33: 1100 | H33: FC / E
D34: Measuring method of the distance (Method of #76) | E34: 0078 | F34: Method of measureing the distance towed. The Guidelines recommend calculating the distance from the value obtained with the 'Flow meter'. | G34: Flow meter | H34: E
D35: Calculation formulas | E35: 0080 | F35: Formula used in determining the distance towed. | G35: Rotation x Factor | H35: E
C36: Sampling area | D36: Sweep area (Unit: m2) (Sampling Area (m2)) | E36: 0082 | F36: Area of sea surface towed, in m2. In principle, this is obtained by multiplying the width of the sampling port (#00062) by the towing distance (#0076). The Guidelines recommend a minimum of 1,000 m2. | G36: =G12*G33 -> 825 | H36: FC / E
D37: Calculation formulas | E37: 0084 | F37: Formula for the area of the sea surface swept in the tow (#0082). | G37: Width of water intake x Sweep distance | H37: E
C38: Filtered water volume | D38: Filtered water volume (Unit: m3) | E38: 0086 | F38: Volume of seawater filtered or sampled, in m3. For sea surface sampling with a tow net, it is determined from the width of the sampling opening (#00062) x distance of the tow net (#0076) x depth at the bottom of the sampling opening (#0100). The Guidelines recommend a filtration volume of 200-500 m3. | G38: =G12*G33*G42 -> 309.375 | H38: FC / E
D39: Calculation formulas | E39: 0088 | F39: Formula for the amount of seawater filtered or collected (#0086). | G39: Width of water intake x Sweep distance x Lower end depth | H39: E
C40: Sampling duration | D40: (hh:mm:ss) | E40: 0090 | F40: Time from the start to the end of the sample collection. Time periods when the net was replaced due to clogging of the net, etc., are excluded from the time taken to obtain the sample | G40: 00:20:00 | H40: FC / E
C41: Vessel speed | D41: (Unit: knot) | E41: 0092 | F41: Velocity with respect to the water at the time of sampling, measured in knots. The Guidelines recommend 1 to 3 knots, and 1-2 knots for small vessels. | G41: 3 | H41: FC / E
C42: Depth of the water intake | D42: Depth (Unit: m) (Lower end depth (m)) | E42: 0098 | F42: Average water depth at the bottom of the net mouth for net sampling, bottom of the sampling mouth for pump sampling, and depth at which the bucket is submerged for bulk sampling. The unit is m. If the sea surface layer was sampled, it means that the seawater was sampled from the sea surface to this water depth, and the value is equal to or less than the height of the sampling port (#0064). If the surface layer was excluded, it means that the seawater was sampled from the water depth obtained by subtracting the height of the sampling port (#0064) from this value to the water depth of this value. | G42: =0.75/2 -> 0.375 | H42: FC / E
D43: Did depth change during sampling? (Lower end depth Change or not) | E43: 0102 | F43: Whether there was a change in the water depth (#0098) at the lower end of the sampling port when the sample was taken. | G43: Changed
C44: Tow direction | D44: Tow direction | E44: 0104 | F44: Sailing direction of the research vessel during sample collection. | G44: Same direction to Current. Reverse direction to Wind.
C45: Blank tests | D45: Whether or not were conducted (Blank test: conducted or not) | E45: 0106 | F45: Whether or not a blank test was performed at the time of sample collection. | G45: Conducted | H45: E
D46: Results of the blank test (Unit: particles/ sample) | E46: 0108 | F46: Results of blank test at time of sample collection. Values are the number of particles obtained in the blank test. | G46: 1 | H46: E
C47: Weather, sea conditions, water quality | D47: Wind direction | E47: 0110 | F47: Wind direction at the time of sample collection. | G47: ESE | H47: E
D48: Wind speed (Unit: m/s) | E48: 0112 | F48: Wind speed at the time of sampling, in m/s. | G48: 1 | H48: E
D49: Significant wave height (Unit: m) | E49: 0114 | F49: Significant wave height at the time of sampling, in meters. Significant wave height is calculated by selecting 1/3 of the total number of waves observed, starting from the highest wave height, and averaging these wave heights. The guidelines recommend that samples be taken with a significant wave height of 0.5 m or less. | G49: 1 | H49: E
D50: Beaufort scale | E50: 0116 | F50: An integer from 0 to 12 that indicates the wind strength at the time of sampling, with smaller numbers indicating calmer conditions. The Guidelines recommend that samples be taken with a Beaufort scale of 3 or less. | G50: 1 | H50: E
D51: Vessel movements | E51: 0118 | F51: Whether the ship was rocking at the time the sample was taken. | G51: Heave | H51: E
D52: Sea surface temperature (Unit: ℃) | E52: 0120 | F52: Sea surface temperature at the time of sample collection, in ℃. | G52: 25 | H52: E
D53: Sea surface salinity (Unit: -) | E53: 0122 | F53: Sea surface salinity at the time of sample collection. | G53: 34 | H53: E
D54: Water current direction | E54: 0124 | F54: Direction of ocean current at the time of sample collection. | G54: From the inner bay to the mouth of the bay
D55: Water current speed (Unit: knot) | E55: 0126 | F55: Velocity of ocean current at the time of sample collection, in knots. | G55: 0.2
C56: Other types of water data | D56: Quality 1 | E56: 0128 | F56: Other water quality information observed at the time of sample collection. | G56: Chlorophyll: 0.1µg/L
D57: Quality 2 | E57: 0130 | F57: Other water quality information observed at the time of sample collection. | G57: Turbidity：2.0
D58: Quality 3 | E58: 0132 | F58: Other water quality information observed at the time of sample collection. | G58: DO: 9.6mg/L
D59: Quality 4 | E59: 0134 | F59: Other water quality information observed at the time of sample collection. | G59: COD: 1.6mg/L
C60: State of floating debris on the sea surface. (possible obstruction) | E60: 0136 | F60: Information on suspended solids visually observed during sample collection. | G60: A large amount of sea buckthorn (Zostera marina) had been caught. | H60: E

Sheet Laboratory analysis
C3: Laboratory analysis
C4: Item | E4: Item ID | F4: Description of data item | G4: Example | H4: Category | I4: Data entry field
I5: All samples | J5: Each samples
C6: Sample name/ ID | E6: 0029 | F6: Name of sample taken for monitoring, or its ID. | G6: =IF(COUNTA('Field Survey'!G21)=1,'Field Survey'!G21,"") -> Towing No.99 | J6: =IF(COUNTA('Field Survey'!J21)=1,'Field Survey'!J21,"") ->  | K6: =IF(COUNTA('Field Survey'!K21)=1,'Field Survey'!K21,"") ->  | L6: =IF(COUNTA('Field Survey'!L21)=1,'Field Survey'!L21,"") ->  | M6: =IF(COUNTA('Field Survey'!M21)=1,'Field Survey'!M21,"") ->  | N6: =IF(COUNTA('Field Survey'!N21)=1,'Field Survey'!N21,"") ->  | O6: =IF(COUNTA('Field Survey'!O21)=1,'Field Survey'!O21,"") ->  | P6: =IF(COUNTA('Field Survey'!P21)=1,'Field Survey'!P21,"") ->  | Q6: =IF(COUNTA('Field Survey'!Q21)=1,'Field Survey'!Q21,"") ->  | R6: =IF(COUNTA('Field Survey'!R21)=1,'Field Survey'!R21,"") ->  | S6: =IF(COUNTA('Field Survey'!S21)=1,'Field Survey'!S21,"") ->  | T6: =IF(COUNTA('Field Survey'!T21)=1,'Field Survey'!T21,"") ->  | U6: =IF(COUNTA('Field Survey'!U21)=1,'Field Survey'!U21,"") ->  | V6: =IF(COUNTA('Field Survey'!V21)=1,'Field Survey'!V21,"") ->  | W6: =IF(COUNTA('Field Survey'!W21)=1,'Field Survey'!W21,"") ->  | X6: =IF(COUNTA('Field Survey'!X21)=1,'Field Survey'!X21,"") ->  | Y6: =IF(COUNTA('Field Survey'!Y21)=1,'Field Survey'!Y21,"") ->  | Z6: =IF(COUNTA('Field Survey'!Z21)=1,'Field Survey'!Z21,"") ->  | AA6: =IF(COUNTA('Field Survey'!AA21)=1,'Field Survey'!AA21,"") ->  | AB6: =IF(COUNTA('Field Survey'!AB21)=1,'Field Survey'!AB21,"") ->  | AC6: =IF(COUNTA('Field Survey'!AC21)=1,'Field Survey'!AC21,"") ->  | AD6: =IF(COUNTA('Field Survey'!AD21)=1,'Field Survey'!AD21,"") ->  | AE6: =IF(COUNTA('Field Survey'!AE21)=1,'Field Survey'!AE21,"") ->  | AF6: =IF(COUNTA('Field Survey'!AF21)=1,'Field Survey'!AF21,"") ->  | AG6: =IF(COUNTA('Field Survey'!AG21)=1,'Field Survey'!AG21,"") ->  | AH6: =IF(COUNTA('Field Survey'!AH21)=1,'Field Survey'!AH21,"") ->  | AI6: =IF(COUNTA('Field Survey'!AI21)=1,'Field Survey'!AI21,"") ->  | AJ6: =IF(COUNTA('Field Survey'!AJ21)=1,'Field Survey'!AJ21,"") ->  | AK6: =IF(COUNTA('Field Survey'!AK21)=1,'Field Survey'!AK21,"") ->  | AL6: =IF(COUNTA('Field Survey'!AL21)=1,'Field Survey'!AL21,"") ->  | AM6: =IF(COUNTA('Field Survey'!AM21)=1,'Field Survey'!AM21,"") ->  | AN6: =IF(COUNTA('Field Survey'!AN21)=1,'Field Survey'!AN21,"") ->  | AO6: =IF(COUNTA('Field Survey'!AO21)=1,'Field Survey'!AO21,"") ->  | AP6: =IF(COUNTA('Field Survey'!AP21)=1,'Field Survey'!AP21,"") ->  | AQ6: =IF(COUNTA('Field Survey'!AQ21)=1,'Field Survey'!AQ21,"") ->  | AR6: =IF(COUNTA('Field Survey'!AR21)=1,'Field Survey'!AR21,"") ->  | AS6: =IF(COUNTA('Field Survey'!AS21)=1,'Field Survey'!AS21,"") ->  | AT6: =IF(COUNTA('Field Survey'!AT21)=1,'Field Survey'!AT21,"") ->  | AU6: =IF(COUNTA('Field Survey'!AU21)=1,'Field Survey'!AU21,"") ->  | AV6: =IF(COUNTA('Field Survey'!AV21)=1,'Field Survey'!AV21,"") ->  | AW6: =IF(COUNTA('Field Survey'!AW21)=1,'Field Survey'!AW21,"") ->  | AX6: =IF(COUNTA('Field Survey'!AX21)=1,'Field Survey'!AX21,"") ->  | AY6: =IF(COUNTA('Field Survey'!AY21)=1,'Field Survey'!AY21,"") ->  | AZ6: =IF(COUNTA('Field Survey'!AZ21)=1,'Field Survey'!AZ21,"") ->  | BA6: =IF(COUNTA('Field Survey'!BA21)=1,'Field Survey'!BA21,"") ->  | BB6: =IF(COUNTA('Field Survey'!BB21)=1,'Field Survey'!BB21,"") ->  | BC6: =IF(COUNTA('Field Survey'!BC21)=1,'Field Survey'!BC21,"") ->  | BD6: =IF(COUNTA('Field Survey'!BD21)=1,'Field Survey'!BD21,"") ->  | BE6: =IF(COUNTA('Field Survey'!BE21)=1,'Field Survey'!BE21,"") ->  | BF6: =IF(COUNTA('Field Survey'!BF21)=1,'Field Survey'!BF21,"") ->  | BG6: =IF(COUNTA('Field Survey'!BG21)=1,'Field Survey'!BG21,"") ->  | BH6: =IF(COUNTA('Field Survey'!BH21)=1,'Field Survey'!BH21,"") ->  | BI6: =IF(COUNTA('Field Survey'!BI21)=1,'Field Survey'!BI21,"") ->  | BJ6: =IF(COUNTA('Field Survey'!BJ21)=1,'Field Survey'!BJ21,"") ->  | BK6: =IF(COUNTA('Field Survey'!BK21)=1,'Field Survey'!BK21,"") ->  | BL6: =IF(COUNTA('Field Survey'!BL21)=1,'Field Survey'!BL21,"") ->  | BM6: =IF(COUNTA('Field Survey'!BM21)=1,'Field Survey'!BM21,"") ->  | BN6: =IF(COUNTA('Field Survey'!BN21)=1,'Field Survey'!BN21,"") ->  | BO6: =IF(COUNTA('Field Survey'!BO21)=1,'Field Survey'!BO21,"") ->  | BP6: =IF(COUNTA('Field Survey'!BP21)=1,'Field Survey'!BP21,"") ->  | BQ6: =IF(COUNTA('Field Survey'!BQ21)=1,'Field Survey'!BQ21,"") ->  | BR6: =IF(COUNTA('Field Survey'!BR21)=1,'Field Survey'!BR21,"") ->  | BS6: =IF(COUNTA('Field Survey'!BS21)=1,'Field Survey'!BS21,"") ->  | BT6: =IF(COUNTA('Field Survey'!BT21)=1,'Field Survey'!BT21,"") ->  | BU6: =IF(COUNTA('Field Survey'!BU21)=1,'Field Survey'!BU21,"") ->  | BV6: =IF(COUNTA('Field Survey'!BV21)=1,'Field Survey'!BV21,"") ->  | BW6: =IF(COUNTA('Field Survey'!BW21)=1,'Field Survey'!BW21,"") ->  | BX6: =IF(COUNTA('Field Survey'!BX21)=1,'Field Survey'!BX21,"") ->  | BY6: =IF(COUNTA('Field Survey'!BY21)=1,'Field Survey'!BY21,"") ->  | BZ6: =IF(COUNTA('Field Survey'!BZ21)=1,'Field Survey'!BZ21,"") ->  | CA6: =IF(COUNTA('Field Survey'!CA21)=1,'Field Survey'!CA21,"") ->  | CB6: =IF(COUNTA('Field Survey'!CB21)=1,'Field Survey'!CB21,"") ->  | CC6: =IF(COUNTA('Field Survey'!CC21)=1,'Field Survey'!CC21,"") ->  | CD6: =IF(COUNTA('Field Survey'!CD21)=1,'Field Survey'!CD21,"") ->  | CE6: =IF(COUNTA('Field Survey'!CE21)=1,'Field Survey'!CE21,"") ->  | CF6: =IF(COUNTA('Field Survey'!CF21)=1,'Field Survey'!CF21,"") ->  | CG6: =IF(COUNTA('Field Survey'!CG21)=1,'Field Survey'!CG21,"") ->  | CH6: =IF(COUNTA('Field Survey'!CH21)=1,'Field Survey'!CH21,"") ->  | CI6: =IF(COUNTA('Field Survey'!CI21)=1,'Field Survey'!CI21,"") ->  | CJ6: =IF(COUNTA('Field Survey'!CJ21)=1,'Field Survey'!CJ21,"") ->  | CK6: =IF(COUNTA('Field Survey'!CK21)=1,'Field Survey'!CK21,"") ->  | CL6: =IF(COUNTA('Field Survey'!CL21)=1,'Field Survey'!CL21,"") ->  | CM6: =IF(COUNTA('Field Survey'!CM21)=1,'Field Survey'!CM21,"") ->  | CN6: =IF(COUNTA('Field Survey'!CN21)=1,'Field Survey'!CN21,"") ->  | CO6: =IF(COUNTA('Field Survey'!CO21)=1,'Field Survey'!CO21,"") ->  | CP6: =IF(COUNTA('Field Survey'!CP21)=1,'Field Survey'!CP21,"") ->  | CQ6: =IF(COUNTA('Field Survey'!CQ21)=1,'Field Survey'!CQ21,"") ->  | CR6: =IF(COUNTA('Field Survey'!CR21)=1,'Field Survey'!CR21,"") ->  | CS6: =IF(COUNTA('Field Survey'!CS21)=1,'Field Survey'!CS21,"") ->  | CT6: =IF(COUNTA('Field Survey'!CT21)=1,'Field Survey'!CT21,"") ->  | CU6: =IF(COUNTA('Field Survey'!CU21)=1,'Field Survey'!CU21,"") ->  | CV6: =IF(COUNTA('Field Survey'!CV21)=1,'Field Survey'!CV21,"") ->  | CW6: =IF(COUNTA('Field Survey'!CW21)=1,'Field Survey'!CW21,"") ->  | CX6: =IF(COUNTA('Field Survey'!CX21)=1,'Field Survey'!CX21,"") ->  | CY6: =IF(COUNTA('Field Survey'!CY21)=1,'Field Survey'!CY21,"") ->  | CZ6: =IF(COUNTA('Field Survey'!CZ21)=1,'Field Survey'!CZ21,"") ->  | DA6: =IF(COUNTA('Field Survey'!DA21)=1,'Field Survey'!DA21,"") ->  | DB6: =IF(COUNTA('Field Survey'!DB21)=1,'Field Survey'!DB21,"") ->  | DC6: =IF(COUNTA('Field Survey'!DC21)=1,'Field Survey'!DC21,"") ->  | DD6: =IF(COUNTA('Field Survey'!DD21)=1,'Field Survey'!DD21,"") ->  | DE6: =IF(COUNTA('Field Survey'!DE21)=1,'Field Survey'!DE21,"") ->  | DF6: =IF(COUNTA('Field Survey'!DF21)=1,'Field Survey'!DF21,"") ->  | DG6: =IF(COUNTA('Field Survey'!DG21)=1,'Field Survey'!DG21,"") ->  | DH6: =IF(COUNTA('Field Survey'!DH21)=1,'Field Survey'!DH21,"") ->  | DI6: =IF(COUNTA('Field Survey'!DI21)=1,'Field Survey'!DI21,"") ->  | DJ6: =IF(COUNTA('Field Survey'!DJ21)=1,'Field Survey'!DJ21,"") ->  | DK6: =IF(COUNTA('Field Survey'!DK21)=1,'Field Survey'!DK21,"") ->  | DL6: =IF(COUNTA('Field Survey'!DL21)=1,'Field Survey'!DL21,"") ->  | DM6: =IF(COUNTA('Field Survey'!DM21)=1,'Field Survey'!DM21,"") ->  | DN6: =IF(COUNTA('Field Survey'!DN21)=1,'Field Survey'!DN21,"") ->  | DO6: =IF(COUNTA('Field Survey'!DO21)=1,'Field Survey'!DO21,"") ->  | DP6: =IF(COUNTA('Field Survey'!DP21)=1,'Field Survey'!DP21,"") ->  | DQ6: =IF(COUNTA('Field Survey'!DQ21)=1,'Field Survey'!DQ21,"") ->  | DR6: =IF(COUNTA('Field Survey'!DR21)=1,'Field Survey'!DR21,"") ->  | DS6: =IF(COUNTA('Field Survey'!DS21)=1,'Field Survey'!DS21,"") ->  | DT6: =IF(COUNTA('Field Survey'!DT21)=1,'Field Survey'!DT21,"") ->  | DU6: =IF(COUNTA('Field Survey'!DU21)=1,'Field Survey'!DU21,"") ->  | DV6: =IF(COUNTA('Field Survey'!DV21)=1,'Field Survey'!DV21,"") ->  | DW6: =IF(COUNTA('Field Survey'!DW21)=1,'Field Survey'!DW21,"") ->  | DX6: =IF(COUNTA('Field Survey'!DX21)=1,'Field Survey'!DX21,"") ->  | DY6: =IF(COUNTA('Field Survey'!DY21)=1,'Field Survey'!DY21,"") ->  | DZ6: =IF(COUNTA('Field Survey'!DZ21)=1,'Field Survey'!DZ21,"") ->  | EA6: =IF(COUNTA('Field Survey'!EA21)=1,'Field Survey'!EA21,"") ->  | EB6: =IF(COUNTA('Field Survey'!EB21)=1,'Field Survey'!EB21,"") ->  | EC6: =IF(COUNTA('Field Survey'!EC21)=1,'Field Survey'!EC21,"") ->  | ED6: =IF(COUNTA('Field Survey'!ED21)=1,'Field Survey'!ED21,"") ->  | EE6: =IF(COUNTA('Field Survey'!EE21)=1,'Field Survey'!EE21,"") ->  | EF6: =IF(COUNTA('Field Survey'!EF21)=1,'Field Survey'!EF21,"") ->  | EG6: =IF(COUNTA('Field Survey'!EG21)=1,'Field Survey'!EG21,"") ->  | EH6: =IF(COUNTA('Field Survey'!EH21)=1,'Field Survey'!EH21,"") ->  | EI6: =IF(COUNTA('Field Survey'!EI21)=1,'Field Survey'!EI21,"") ->  | EJ6: =IF(COUNTA('Field Survey'!EJ21)=1,'Field Survey'!EJ21,"") ->  | EK6: =IF(COUNTA('Field Survey'!EK21)=1,'Field Survey'!EK21,"") ->  | EL6: =IF(COUNTA('Field Survey'!EL21)=1,'Field Survey'!EL21,"") ->  | EM6: =IF(COUNTA('Field Survey'!EM21)=1,'Field Survey'!EM21,"") ->  | EN6: =IF(COUNTA('Field Survey'!EN21)=1,'Field Survey'!EN21,"") ->  | EO6: =IF(COUNTA('Field Survey'!EO21)=1,'Field Survey'!EO21,"") ->  | EP6: =IF(COUNTA('Field Survey'!EP21)=1,'Field Survey'!EP21,"") ->  | EQ6: =IF(COUNTA('Field Survey'!EQ21)=1,'Field Survey'!EQ21,"") ->  | ER6: =IF(COUNTA('Field Survey'!ER21)=1,'Field Survey'!ER21,"") ->  | ES6: =IF(COUNTA('Field Survey'!ES21)=1,'Field Survey'!ES21,"") ->  | ET6: =IF(COUNTA('Field Survey'!ET21)=1,'Field Survey'!ET21,"") ->  | EU6: =IF(COUNTA('Field Survey'!EU21)=1,'Field Survey'!EU21,"") ->  | EV6: =IF(COUNTA('Field Survey'!EV21)=1,'Field Survey'!EV21,"") ->  | EW6: =IF(COUNTA('Field Survey'!EW21)=1,'Field Survey'!EW21,"") ->  | EX6: =IF(COUNTA('Field Survey'!EX21)=1,'Field Survey'!EX21,"") ->  | EY6: =IF(COUNTA('Field Survey'!EY21)=1,'Field Survey'!EY21,"") ->  | EZ6: =IF(COUNTA('Field Survey'!EZ21)=1,'Field Survey'!EZ21,"") ->  | FA6: =IF(COUNTA('Field Survey'!FA21)=1,'Field Survey'!FA21,"") ->  | FB6: =IF(COUNTA('Field Survey'!FB21)=1,'Field Survey'!FB21,"") ->  | FC6: =IF(COUNTA('Field Survey'!FC21)=1,'Field Survey'!FC21,"") ->  | FD6: =IF(COUNTA('Field Survey'!FD21)=1,'Field Survey'!FD21,"") ->  | FE6: =IF(COUNTA('Field Survey'!FE21)=1,'Field Survey'!FE21,"") ->  | FF6: =IF(COUNTA('Field Survey'!FF21)=1,'Field Survey'!FF21,"") ->  | FG6: =IF(COUNTA('Field Survey'!FG21)=1,'Field Survey'!FG21,"") ->  | FH6: =IF(COUNTA('Field Survey'!FH21)=1,'Field Survey'!FH21,"") ->  | FI6: =IF(COUNTA('Field Survey'!FI21)=1,'Field Survey'!FI21,"") ->  | FJ6: =IF(COUNTA('Field Survey'!FJ21)=1,'Field Survey'!FJ21,"") ->  | FK6: =IF(COUNTA('Field Survey'!FK21)=1,'Field Survey'!FK21,"") ->  | FL6: =IF(COUNTA('Field Survey'!FL21)=1,'Field Survey'!FL21,"") ->  | FM6: =IF(COUNTA('Field Survey'!FM21)=1,'Field Survey'!FM21,"") ->  | FN6: =IF(COUNTA('Field Survey'!FN21)=1,'Field Survey'!FN21,"") ->  | FO6: =IF(COUNTA('Field Survey'!FO21)=1,'Field Survey'!FO21,"") ->  | FP6: =IF(COUNTA('Field Survey'!FP21)=1,'Field Survey'!FP21,"") ->  | FQ6: =IF(COUNTA('Field Survey'!FQ21)=1,'Field Survey'!FQ21,"") ->  | FR6: =IF(COUNTA('Field Survey'!FR21)=1,'Field Survey'!FR21,"") ->  | FS6: =IF(COUNTA('Field Survey'!FS21)=1,'Field Survey'!FS21,"") ->  | FT6: =IF(COUNTA('Field Survey'!FT21)=1,'Field Survey'!FT21,"") ->  | FU6: =IF(COUNTA('Field Survey'!FU21)=1,'Field Survey'!FU21,"") ->  | FV6: =IF(COUNTA('Field Survey'!FV21)=1,'Field Survey'!FV21,"") ->  | FW6: =IF(COUNTA('Field Survey'!FW21)=1,'Field Survey'!FW21,"") ->  | FX6: =IF(COUNTA('Field Survey'!FX21)=1,'Field Survey'!FX21,"") ->  | FY6: =IF(COUNTA('Field Survey'!FY21)=1,'Field Survey'!FY21,"") ->  | FZ6: =IF(COUNTA('Field Survey'!FZ21)=1,'Field Survey'!FZ21,"") ->  | GA6: =IF(COUNTA('Field Survey'!GA21)=1,'Field Survey'!GA21,"") ->  | GB6: =IF(COUNTA('Field Survey'!GB21)=1,'Field Survey'!GB21,"") ->  | GC6: =IF(COUNTA('Field Survey'!GC21)=1,'Field Survey'!GC21,"") ->  | GD6: =IF(COUNTA('Field Survey'!GD21)=1,'Field Survey'!GD21,"") ->  | GE6: =IF(COUNTA('Field Survey'!GE21)=1,'Field Survey'!GE21,"") ->  | GF6: =IF(COUNTA('Field Survey'!GF21)=1,'Field Survey'!GF21,"") ->  | GG6: =IF(COUNTA('Field Survey'!GG21)=1,'Field Survey'!GG21,"") ->  | GH6: =IF(COUNTA('Field Survey'!GH21)=1,'Field Survey'!GH21,"") ->  | GI6: =IF(COUNTA('Field Survey'!GI21)=1,'Field Survey'!GI21,"") ->  | GJ6: =IF(COUNTA('Field Survey'!GJ21)=1,'Field Survey'!GJ21,"") ->  | GK6: =IF(COUNTA('Field Survey'!GK21)=1,'Field Survey'!GK21,"") ->  | GL6: =IF(COUNTA('Field Survey'!GL21)=1,'Field Survey'!GL21,"") ->  | GM6: =IF(COUNTA('Field Survey'!GM21)=1,'Field Survey'!GM21,"") ->  | GN6: =IF(COUNTA('Field Survey'!GN21)=1,'Field Survey'!GN21,"") ->  | GO6: =IF(COUNTA('Field Survey'!GO21)=1,'Field Survey'!GO21,"") ->  | GP6: =IF(COUNTA('Field Survey'!GP21)=1,'Field Survey'!GP21,"") ->  | GQ6: =IF(COUNTA('Field Survey'!GQ21)=1,'Field Survey'!GQ21,"") ->  | GR6: =IF(COUNTA('Field Survey'!GR21)=1,'Field Survey'!GR21,"") ->  | GS6: =IF(COUNTA('Field Survey'!GS21)=1,'Field Survey'!GS21,"") ->  | GT6: =IF(COUNTA('Field Survey'!GT21)=1,'Field Survey'!GT21,"") ->  | GU6: =IF(COUNTA('Field Survey'!GU21)=1,'Field Survey'!GU21,"") ->  | GV6: =IF(COUNTA('Field Survey'!GV21)=1,'Field Survey'!GV21,"") ->  | GW6: =IF(COUNTA('Field Survey'!GW21)=1,'Field Survey'!GW21,"") ->  | GX6: =IF(COUNTA('Field Survey'!GX21)=1,'Field Survey'!GX21,"") ->  | GY6: =IF(COUNTA('Field Survey'!GY21)=1,'Field Survey'!GY21,"") ->  | GZ6: =IF(COUNTA('Field Survey'!GZ21)=1,'Field Survey'!GZ21,"") ->  | HA6: =IF(COUNTA('Field Survey'!HA21)=1,'Field Survey'!HA21,"") -> 
C7: Sample splitting | D7: Whether or not sample splitting was conducted | E7: 0154 | F7: Whether or not sample division was performed. | G7: Conducted | H7: E
D8: Method or equipment of splitting | E8: 0156 | F8: Sample division method. | G8: Split into four by Folsom splitter | H8: E
D9: Estimated relative error range caused by splitting process | E9: 0158 | F9: Error resulting from sample division. | G9: about ± 10%
C10: Biological digestion and chemical treatment | D10: Whether or not was conducted (Biological digestiion and chemical treat) | E10: 0146 | F10: Whether biochemical or chemical treatment was used to break down natural organic matter. | G10: Conducted | H10: E
D11: Methods used for digesting organic matter | E11: 0148 | F11: Biochemical or chemical treatment. | G11: Oxidation treatment (30%H2O2 solution was added to the sample) | H11: E
D12: Temperature during processing (Unit: ℃) | E12: 0150 | F12: Temperature at time of biochemical or chemical treatment, in %. | G12: 60 | H12: E
D13: Reaction time (Unit: min.) | E13: 0152 | F13: Reaction time for biochemical or chemical treatment, in minutes. | G13: 7200 | H13: E
C14: Density separation | D14: Whether or not was conducted (Density separation conducted or not) | E14: 0138 | F14: Whether the analysis separated plastic from oher materials by differences in density. | G14: Conducted | H14: E
D15: Type of solution used (Solution type for density separation) | E15: 0140 | F15: Type of solute used in the density separation. | G15: NaCl | H15: E
D16: Concentration of solution for density separation (Unit: %) | E16: 0142 | F16: Concentration of solute used in the density separation, in %. | G16: 26 | H16: E
D17: Processing Time (Unit: min.) | E17: 0144 | F17: Standing time for density separation, in minutes | G17: 60
C18: Isolation of microplastics | D18: Whether or not pretreatment before particle isolation was conducted | E18: 0160 | F18: Whether or not pretreatment was performed to separate microplastics. | G18: Conducted | H18: E
D19: Type of pretreatment | E19: 0162 | F19: Type of pretreatment. | G19: A size fluctuation with 2.0 mm and 0.3 mm sieves
D20: Whether or not picking was conducted under stereomicroscope (Under stereomicroscope or not) | E20: 0164 | F20: Whether or not a stereomicroscope was used. | G20: Used | H20: E
C21: Counting and measuring sizes of particles | D21: Method of size fractionation | E21: 0166 | F21: Method of fractionating the particle size to count the number and weight of particles by particle size. The Guidelines recommend measuring the major axis of each particle. In addition, there is also a method of using multiple stages of sieves to carry out particle size fractionation. | G21: Measured maximum diameter | H21: E
C22: Identification of microplastics | D22: Whether or not composition analysis was conducted | E22: 0168 | F22: Whether the materials were analyzed or not. | G22: Conducted | H22: E
D23: Method of composition analysis | E23: 0170 | F23: Methods by which the materials were analyzed | G23: FTIR (Bruker optics) | H23: E
D24: Percentage of the particles subjected to composition analysis (Unit: %) | E24: 0172 | F24: Percentage of number of particles analyzed for material quality, in %. | G24: 100 | H24: E
C25: Weight measurement | D25: Temperature of sample drying (Unit: ℃) | E25: 0174 | F25: Temperature of drying process conducted prior to particle weight measurement, in °C. | G25: 25 | H25: E
D26: Humidity of sample drying (Unit: %) | E26: 0176 | F26: Humidity, in %, of the drying process conducted prior to particle weight measurement. | G26: 100
D27: Processing time of sample drying (Unit: min.) | E27: 0178 | F27: Time, in minutes, of the drying process performed prior to particle weight measurement. | G27: 1440 | H27: E
D28: Methods of weight measurements | E28: 0180 | F28: Methods used to measure the weight of particles. | G28: Weighting the mass of the vial and microplastics together and subtracting the mass of the tared vial to provide the mass of the microplastics. | H28: E
C29: Blank tests | D29: Whether or not blank tests were conducted | E29: 0182 | F29: Whether or not a blank test was performed at the time of analysis. | G29: Conducted | H29: E
D30: Blank test results (Unit: particles/ sample) | E30: 0184 | F30: Results of blank test at time of analysis, values are the number of particles obtained in the blank test. | G30: 2 | H30: E
C31: Spiked recovery tests | D31: Whether or not spiked recovery tests were conducted | E31: 0186 | F31: The presence or absence of additive recovery testing. | G31: Conducted | H31: E
D32: Spiked recovery test results (Unit: %) | E32: 0188 | F32: Results of additive recovery test (number of particles recovered/number of particles added), in %. | G32: 96 | H32: E

Sheet Results
C3: Results
C4: Item | F4: Item ID | G4: Description of data item | H4: Example | I4: Category | J4: Data entry field
C5: Sample name/ ID | F5: 0029 | G5: The name of the sample taken for monitoring, or its ID. | H5: =IF(COUNTA('Field Survey'!G21)=1,'Field Survey'!G21,"") -> Towing No.99 | J5: =IF(COUNTA('Field Survey'!J21)=1,'Field Survey'!J21,"") ->  | K5: =IF(COUNTA('Field Survey'!K21)=1,'Field Survey'!K21,"") ->  | L5: =IF(COUNTA('Field Survey'!L21)=1,'Field Survey'!L21,"") ->  | M5: =IF(COUNTA('Field Survey'!M21)=1,'Field Survey'!M21,"") ->  | N5: =IF(COUNTA('Field Survey'!N21)=1,'Field Survey'!N21,"") ->  | O5: =IF(COUNTA('Field Survey'!O21)=1,'Field Survey'!O21,"") ->  | P5: =IF(COUNTA('Field Survey'!P21)=1,'Field Survey'!P21,"") ->  | Q5: =IF(COUNTA('Field Survey'!Q21)=1,'Field Survey'!Q21,"") ->  | R5: =IF(COUNTA('Field Survey'!R21)=1,'Field Survey'!R21,"") ->  | S5: =IF(COUNTA('Field Survey'!S21)=1,'Field Survey'!S21,"") ->  | T5: =IF(COUNTA('Field Survey'!T21)=1,'Field Survey'!T21,"") ->  | U5: =IF(COUNTA('Field Survey'!U21)=1,'Field Survey'!U21,"") ->  | V5: =IF(COUNTA('Field Survey'!V21)=1,'Field Survey'!V21,"") ->  | W5: =IF(COUNTA('Field Survey'!W21)=1,'Field Survey'!W21,"") ->  | X5: =IF(COUNTA('Field Survey'!X21)=1,'Field Survey'!X21,"") ->  | Y5: =IF(COUNTA('Field Survey'!Y21)=1,'Field Survey'!Y21,"") ->  | Z5: =IF(COUNTA('Field Survey'!Z21)=1,'Field Survey'!Z21,"") ->  | AA5: =IF(COUNTA('Field Survey'!AA21)=1,'Field Survey'!AA21,"") ->  | AB5: =IF(COUNTA('Field Survey'!AB21)=1,'Field Survey'!AB21,"") ->  | AC5: =IF(COUNTA('Field Survey'!AC21)=1,'Field Survey'!AC21,"") ->  | AD5: =IF(COUNTA('Field Survey'!AD21)=1,'Field Survey'!AD21,"") ->  | AE5: =IF(COUNTA('Field Survey'!AE21)=1,'Field Survey'!AE21,"") ->  | AF5: =IF(COUNTA('Field Survey'!AF21)=1,'Field Survey'!AF21,"") ->  | AG5: =IF(COUNTA('Field Survey'!AG21)=1,'Field Survey'!AG21,"") ->  | AH5: =IF(COUNTA('Field Survey'!AH21)=1,'Field Survey'!AH21,"") ->  | AI5: =IF(COUNTA('Field Survey'!AI21)=1,'Field Survey'!AI21,"") ->  | AJ5: =IF(COUNTA('Field Survey'!AJ21)=1,'Field Survey'!AJ21,"") ->  | AK5: =IF(COUNTA('Field Survey'!AK21)=1,'Field Survey'!AK21,"") ->  | AL5: =IF(COUNTA('Field Survey'!AL21)=1,'Field Survey'!AL21,"") ->  | AM5: =IF(COUNTA('Field Survey'!AM21)=1,'Field Survey'!AM21,"") ->  | AN5: =IF(COUNTA('Field Survey'!AN21)=1,'Field Survey'!AN21,"") ->  | AO5: =IF(COUNTA('Field Survey'!AO21)=1,'Field Survey'!AO21,"") ->  | AP5: =IF(COUNTA('Field Survey'!AP21)=1,'Field Survey'!AP21,"") ->  | AQ5: =IF(COUNTA('Field Survey'!AQ21)=1,'Field Survey'!AQ21,"") ->  | AR5: =IF(COUNTA('Field Survey'!AR21)=1,'Field Survey'!AR21,"") ->  | AS5: =IF(COUNTA('Field Survey'!AS21)=1,'Field Survey'!AS21,"") ->  | AT5: =IF(COUNTA('Field Survey'!AT21)=1,'Field Survey'!AT21,"") ->  | AU5: =IF(COUNTA('Field Survey'!AU21)=1,'Field Survey'!AU21,"") ->  | AV5: =IF(COUNTA('Field Survey'!AV21)=1,'Field Survey'!AV21,"") ->  | AW5: =IF(COUNTA('Field Survey'!AW21)=1,'Field Survey'!AW21,"") ->  | AX5: =IF(COUNTA('Field Survey'!AX21)=1,'Field Survey'!AX21,"") ->  | AY5: =IF(COUNTA('Field Survey'!AY21)=1,'Field Survey'!AY21,"") ->  | AZ5: =IF(COUNTA('Field Survey'!AZ21)=1,'Field Survey'!AZ21,"") ->  | BA5: =IF(COUNTA('Field Survey'!BA21)=1,'Field Survey'!BA21,"") ->  | BB5: =IF(COUNTA('Field Survey'!BB21)=1,'Field Survey'!BB21,"") ->  | BC5: =IF(COUNTA('Field Survey'!BC21)=1,'Field Survey'!BC21,"") ->  | BD5: =IF(COUNTA('Field Survey'!BD21)=1,'Field Survey'!BD21,"") ->  | BE5: =IF(COUNTA('Field Survey'!BE21)=1,'Field Survey'!BE21,"") ->  | BF5: =IF(COUNTA('Field Survey'!BF21)=1,'Field Survey'!BF21,"") ->  | BG5: =IF(COUNTA('Field Survey'!BG21)=1,'Field Survey'!BG21,"") ->  | BH5: =IF(COUNTA('Field Survey'!BH21)=1,'Field Survey'!BH21,"") ->  | BI5: =IF(COUNTA('Field Survey'!BI21)=1,'Field Survey'!BI21,"") ->  | BJ5: =IF(COUNTA('Field Survey'!BJ21)=1,'Field Survey'!BJ21,"") ->  | BK5: =IF(COUNTA('Field Survey'!BK21)=1,'Field Survey'!BK21,"") ->  | BL5: =IF(COUNTA('Field Survey'!BL21)=1,'Field Survey'!BL21,"") ->  | BM5: =IF(COUNTA('Field Survey'!BM21)=1,'Field Survey'!BM21,"") ->  | BN5: =IF(COUNTA('Field Survey'!BN21)=1,'Field Survey'!BN21,"") ->  | BO5: =IF(COUNTA('Field Survey'!BO21)=1,'Field Survey'!BO21,"") ->  | BP5: =IF(COUNTA('Field Survey'!BP21)=1,'Field Survey'!BP21,"") ->  | BQ5: =IF(COUNTA('Field Survey'!BQ21)=1,'Field Survey'!BQ21,"") ->  | BR5: =IF(COUNTA('Field Survey'!BR21)=1,'Field Survey'!BR21,"") ->  | BS5: =IF(COUNTA('Field Survey'!BS21)=1,'Field Survey'!BS21,"") ->  | BT5: =IF(COUNTA('Field Survey'!BT21)=1,'Field Survey'!BT21,"") ->  | BU5: =IF(COUNTA('Field Survey'!BU21)=1,'Field Survey'!BU21,"") ->  | BV5: =IF(COUNTA('Field Survey'!BV21)=1,'Field Survey'!BV21,"") ->  | BW5: =IF(COUNTA('Field Survey'!BW21)=1,'Field Survey'!BW21,"") ->  | BX5: =IF(COUNTA('Field Survey'!BX21)=1,'Field Survey'!BX21,"") ->  | BY5: =IF(COUNTA('Field Survey'!BY21)=1,'Field Survey'!BY21,"") ->  | BZ5: =IF(COUNTA('Field Survey'!BZ21)=1,'Field Survey'!BZ21,"") ->  | CA5: =IF(COUNTA('Field Survey'!CA21)=1,'Field Survey'!CA21,"") ->  | CB5: =IF(COUNTA('Field Survey'!CB21)=1,'Field Survey'!CB21,"") ->  | CC5: =IF(COUNTA('Field Survey'!CC21)=1,'Field Survey'!CC21,"") ->  | CD5: =IF(COUNTA('Field Survey'!CD21)=1,'Field Survey'!CD21,"") ->  | CE5: =IF(COUNTA('Field Survey'!CE21)=1,'Field Survey'!CE21,"") ->  | CF5: =IF(COUNTA('Field Survey'!CF21)=1,'Field Survey'!CF21,"") ->  | CG5: =IF(COUNTA('Field Survey'!CG21)=1,'Field Survey'!CG21,"") ->  | CH5: =IF(COUNTA('Field Survey'!CH21)=1,'Field Survey'!CH21,"") ->  | CI5: =IF(COUNTA('Field Survey'!CI21)=1,'Field Survey'!CI21,"") ->  | CJ5: =IF(COUNTA('Field Survey'!CJ21)=1,'Field Survey'!CJ21,"") ->  | CK5: =IF(COUNTA('Field Survey'!CK21)=1,'Field Survey'!CK21,"") ->  | CL5: =IF(COUNTA('Field Survey'!CL21)=1,'Field Survey'!CL21,"") ->  | CM5: =IF(COUNTA('Field Survey'!CM21)=1,'Field Survey'!CM21,"") ->  | CN5: =IF(COUNTA('Field Survey'!CN21)=1,'Field Survey'!CN21,"") ->  | CO5: =IF(COUNTA('Field Survey'!CO21)=1,'Field Survey'!CO21,"") ->  | CP5: =IF(COUNTA('Field Survey'!CP21)=1,'Field Survey'!CP21,"") ->  | CQ5: =IF(COUNTA('Field Survey'!CQ21)=1,'Field Survey'!CQ21,"") ->  | CR5: =IF(COUNTA('Field Survey'!CR21)=1,'Field Survey'!CR21,"") ->  | CS5: =IF(COUNTA('Field Survey'!CS21)=1,'Field Survey'!CS21,"") ->  | CT5: =IF(COUNTA('Field Survey'!CT21)=1,'Field Survey'!CT21,"") ->  | CU5: =IF(COUNTA('Field Survey'!CU21)=1,'Field Survey'!CU21,"") ->  | CV5: =IF(COUNTA('Field Survey'!CV21)=1,'Field Survey'!CV21,"") ->  | CW5: =IF(COUNTA('Field Survey'!CW21)=1,'Field Survey'!CW21,"") ->  | CX5: =IF(COUNTA('Field Survey'!CX21)=1,'Field Survey'!CX21,"") ->  | CY5: =IF(COUNTA('Field Survey'!CY21)=1,'Field Survey'!CY21,"") ->  | CZ5: =IF(COUNTA('Field Survey'!CZ21)=1,'Field Survey'!CZ21,"") ->  | DA5: =IF(COUNTA('Field Survey'!DA21)=1,'Field Survey'!DA21,"") ->  | DB5: =IF(COUNTA('Field Survey'!DB21)=1,'Field Survey'!DB21,"") ->  | DC5: =IF(COUNTA('Field Survey'!DC21)=1,'Field Survey'!DC21,"") ->  | DD5: =IF(COUNTA('Field Survey'!DD21)=1,'Field Survey'!DD21,"") ->  | DE5: =IF(COUNTA('Field Survey'!DE21)=1,'Field Survey'!DE21,"") ->  | DF5: =IF(COUNTA('Field Survey'!DF21)=1,'Field Survey'!DF21,"") ->  | DG5: =IF(COUNTA('Field Survey'!DG21)=1,'Field Survey'!DG21,"") ->  | DH5: =IF(COUNTA('Field Survey'!DH21)=1,'Field Survey'!DH21,"") ->  | DI5: =IF(COUNTA('Field Survey'!DI21)=1,'Field Survey'!DI21,"") ->  | DJ5: =IF(COUNTA('Field Survey'!DJ21)=1,'Field Survey'!DJ21,"") ->  | DK5: =IF(COUNTA('Field Survey'!DK21)=1,'Field Survey'!DK21,"") ->  | DL5: =IF(COUNTA('Field Survey'!DL21)=1,'Field Survey'!DL21,"") ->  | DM5: =IF(COUNTA('Field Survey'!DM21)=1,'Field Survey'!DM21,"") ->  | DN5: =IF(COUNTA('Field Survey'!DN21)=1,'Field Survey'!DN21,"") ->  | DO5: =IF(COUNTA('Field Survey'!DO21)=1,'Field Survey'!DO21,"") ->  | DP5: =IF(COUNTA('Field Survey'!DP21)=1,'Field Survey'!DP21,"") ->  | DQ5: =IF(COUNTA('Field Survey'!DQ21)=1,'Field Survey'!DQ21,"") ->  | DR5: =IF(COUNTA('Field Survey'!DR21)=1,'Field Survey'!DR21,"") ->  | DS5: =IF(COUNTA('Field Survey'!DS21)=1,'Field Survey'!DS21,"") ->  | DT5: =IF(COUNTA('Field Survey'!DT21)=1,'Field Survey'!DT21,"") ->  | DU5: =IF(COUNTA('Field Survey'!DU21)=1,'Field Survey'!DU21,"") ->  | DV5: =IF(COUNTA('Field Survey'!DV21)=1,'Field Survey'!DV21,"") ->  | DW5: =IF(COUNTA('Field Survey'!DW21)=1,'Field Survey'!DW21,"") ->  | DX5: =IF(COUNTA('Field Survey'!DX21)=1,'Field Survey'!DX21,"") ->  | DY5: =IF(COUNTA('Field Survey'!DY21)=1,'Field Survey'!DY21,"") ->  | DZ5: =IF(COUNTA('Field Survey'!DZ21)=1,'Field Survey'!DZ21,"") ->  | EA5: =IF(COUNTA('Field Survey'!EA21)=1,'Field Survey'!EA21,"") ->  | EB5: =IF(COUNTA('Field Survey'!EB21)=1,'Field Survey'!EB21,"") ->  | EC5: =IF(COUNTA('Field Survey'!EC21)=1,'Field Survey'!EC21,"") ->  | ED5: =IF(COUNTA('Field Survey'!ED21)=1,'Field Survey'!ED21,"") ->  | EE5: =IF(COUNTA('Field Survey'!EE21)=1,'Field Survey'!EE21,"") ->  | EF5: =IF(COUNTA('Field Survey'!EF21)=1,'Field Survey'!EF21,"") ->  | EG5: =IF(COUNTA('Field Survey'!EG21)=1,'Field Survey'!EG21,"") ->  | EH5: =IF(COUNTA('Field Survey'!EH21)=1,'Field Survey'!EH21,"") ->  | EI5: =IF(COUNTA('Field Survey'!EI21)=1,'Field Survey'!EI21,"") ->  | EJ5: =IF(COUNTA('Field Survey'!EJ21)=1,'Field Survey'!EJ21,"") ->  | EK5: =IF(COUNTA('Field Survey'!EK21)=1,'Field Survey'!EK21,"") ->  | EL5: =IF(COUNTA('Field Survey'!EL21)=1,'Field Survey'!EL21,"") ->  | EM5: =IF(COUNTA('Field Survey'!EM21)=1,'Field Survey'!EM21,"") ->  | EN5: =IF(COUNTA('Field Survey'!EN21)=1,'Field Survey'!EN21,"") ->  | EO5: =IF(COUNTA('Field Survey'!EO21)=1,'Field Survey'!EO21,"") ->  | EP5: =IF(COUNTA('Field Survey'!EP21)=1,'Field Survey'!EP21,"") ->  | EQ5: =IF(COUNTA('Field Survey'!EQ21)=1,'Field Survey'!EQ21,"") ->  | ER5: =IF(COUNTA('Field Survey'!ER21)=1,'Field Survey'!ER21,"") ->  | ES5: =IF(COUNTA('Field Survey'!ES21)=1,'Field Survey'!ES21,"") ->  | ET5: =IF(COUNTA('Field Survey'!ET21)=1,'Field Survey'!ET21,"") ->  | EU5: =IF(COUNTA('Field Survey'!EU21)=1,'Field Survey'!EU21,"") ->  | EV5: =IF(COUNTA('Field Survey'!EV21)=1,'Field Survey'!EV21,"") ->  | EW5: =IF(COUNTA('Field Survey'!EW21)=1,'Field Survey'!EW21,"") ->  | EX5: =IF(COUNTA('Field Survey'!EX21)=1,'Field Survey'!EX21,"") ->  | EY5: =IF(COUNTA('Field Survey'!EY21)=1,'Field Survey'!EY21,"") ->  | EZ5: =IF(COUNTA('Field Survey'!EZ21)=1,'Field Survey'!EZ21,"") ->  | FA5: =IF(COUNTA('Field Survey'!FA21)=1,'Field Survey'!FA21,"") ->  | FB5: =IF(COUNTA('Field Survey'!FB21)=1,'Field Survey'!FB21,"") ->  | FC5: =IF(COUNTA('Field Survey'!FC21)=1,'Field Survey'!FC21,"") ->  | FD5: =IF(COUNTA('Field Survey'!FD21)=1,'Field Survey'!FD21,"") ->  | FE5: =IF(COUNTA('Field Survey'!FE21)=1,'Field Survey'!FE21,"") ->  | FF5: =IF(COUNTA('Field Survey'!FF21)=1,'Field Survey'!FF21,"") ->  | FG5: =IF(COUNTA('Field Survey'!FG21)=1,'Field Survey'!FG21,"") ->  | FH5: =IF(COUNTA('Field Survey'!FH21)=1,'Field Survey'!FH21,"") ->  | FI5: =IF(COUNTA('Field Survey'!FI21)=1,'Field Survey'!FI21,"") ->  | FJ5: =IF(COUNTA('Field Survey'!FJ21)=1,'Field Survey'!FJ21,"") ->  | FK5: =IF(COUNTA('Field Survey'!FK21)=1,'Field Survey'!FK21,"") ->  | FL5: =IF(COUNTA('Field Survey'!FL21)=1,'Field Survey'!FL21,"") ->  | FM5: =IF(COUNTA('Field Survey'!FM21)=1,'Field Survey'!FM21,"") ->  | FN5: =IF(COUNTA('Field Survey'!FN21)=1,'Field Survey'!FN21,"") ->  | FO5: =IF(COUNTA('Field Survey'!FO21)=1,'Field Survey'!FO21,"") ->  | FP5: =IF(COUNTA('Field Survey'!FP21)=1,'Field Survey'!FP21,"") ->  | FQ5: =IF(COUNTA('Field Survey'!FQ21)=1,'Field Survey'!FQ21,"") ->  | FR5: =IF(COUNTA('Field Survey'!FR21)=1,'Field Survey'!FR21,"") ->  | FS5: =IF(COUNTA('Field Survey'!FS21)=1,'Field Survey'!FS21,"") ->  | FT5: =IF(COUNTA('Field Survey'!FT21)=1,'Field Survey'!FT21,"") ->  | FU5: =IF(COUNTA('Field Survey'!FU21)=1,'Field Survey'!FU21,"") ->  | FV5: =IF(COUNTA('Field Survey'!FV21)=1,'Field Survey'!FV21,"") ->  | FW5: =IF(COUNTA('Field Survey'!FW21)=1,'Field Survey'!FW21,"") ->  | FX5: =IF(COUNTA('Field Survey'!FX21)=1,'Field Survey'!FX21,"") ->  | FY5: =IF(COUNTA('Field Survey'!FY21)=1,'Field Survey'!FY21,"") ->  | FZ5: =IF(COUNTA('Field Survey'!FZ21)=1,'Field Survey'!FZ21,"") ->  | GA5: =IF(COUNTA('Field Survey'!GA21)=1,'Field Survey'!GA21,"") ->  | GB5: =IF(COUNTA('Field Survey'!GB21)=1,'Field Survey'!GB21,"") ->  | GC5: =IF(COUNTA('Field Survey'!GC21)=1,'Field Survey'!GC21,"") ->  | GD5: =IF(COUNTA('Field Survey'!GD21)=1,'Field Survey'!GD21,"") ->  | GE5: =IF(COUNTA('Field Survey'!GE21)=1,'Field Survey'!GE21,"") ->  | GF5: =IF(COUNTA('Field Survey'!GF21)=1,'Field Survey'!GF21,"") ->  | GG5: =IF(COUNTA('Field Survey'!GG21)=1,'Field Survey'!GG21,"") ->  | GH5: =IF(COUNTA('Field Survey'!GH21)=1,'Field Survey'!GH21,"") ->  | GI5: =IF(COUNTA('Field Survey'!GI21)=1,'Field Survey'!GI21,"") ->  | GJ5: =IF(COUNTA('Field Survey'!GJ21)=1,'Field Survey'!GJ21,"") ->  | GK5: =IF(COUNTA('Field Survey'!GK21)=1,'Field Survey'!GK21,"") ->  | GL5: =IF(COUNTA('Field Survey'!GL21)=1,'Field Survey'!GL21,"") ->  | GM5: =IF(COUNTA('Field Survey'!GM21)=1,'Field Survey'!GM21,"") ->  | GN5: =IF(COUNTA('Field Survey'!GN21)=1,'Field Survey'!GN21,"") ->  | GO5: =IF(COUNTA('Field Survey'!GO21)=1,'Field Survey'!GO21,"") ->  | GP5: =IF(COUNTA('Field Survey'!GP21)=1,'Field Survey'!GP21,"") ->  | GQ5: =IF(COUNTA('Field Survey'!GQ21)=1,'Field Survey'!GQ21,"") ->  | GR5: =IF(COUNTA('Field Survey'!GR21)=1,'Field Survey'!GR21,"") ->  | GS5: =IF(COUNTA('Field Survey'!GS21)=1,'Field Survey'!GS21,"") ->  | GT5: =IF(COUNTA('Field Survey'!GT21)=1,'Field Survey'!GT21,"") ->  | GU5: =IF(COUNTA('Field Survey'!GU21)=1,'Field Survey'!GU21,"") ->  | GV5: =IF(COUNTA('Field Survey'!GV21)=1,'Field Survey'!GV21,"") ->  | GW5: =IF(COUNTA('Field Survey'!GW21)=1,'Field Survey'!GW21,"") ->  | GX5: =IF(COUNTA('Field Survey'!GX21)=1,'Field Survey'!GX21,"") ->  | GY5: =IF(COUNTA('Field Survey'!GY21)=1,'Field Survey'!GY21,"") ->  | GZ5: =IF(COUNTA('Field Survey'!GZ21)=1,'Field Survey'!GZ21,"") ->  | HA5: =IF(COUNTA('Field Survey'!HA21)=1,'Field Survey'!HA21,"") -> 
C6: Number of plastic particles | D6: d<5.0mm | F6: 0190 | G6: Number of particles with a particle size of less than 5 mm. | H6: =H7+H8 -> 1260 | I6: FB*
C7: (Unit: parrticles/sample) | D7: 1.0mm≤d<5.0mm | F7: 0202 | G7: Volume density of the number of particles with a particle size of less than 5 mm, calculated in principle as the number of particles (#0190)/volume of filtered water (#0086), in partsicles/m3. | H7: 1092 | I7: FB* / E
C8: (Total Number of Particles) | D8: d<1.0mm | F8: 0214 | G8: Area density of the number of particles with a particle diameter of less than 5 mm, calculated in principle as the number of particles (#0190)/sampled area (#0082)/1,000,0000m2/km2, in partsicles/km2. | H8: 168 | I8: FB*
D9: 5.0mm≤d | F9: 0226 | G9: Particle weight of particles with a diameter of less than 5 mm. | H9: 52
C10: Particle number density per filtered water volume | D10: d<5.0mm | F10: 0192 | G10: Particle weight volume density of particles with a particle size of less than 5 mm, calculated in principle as particle weight (#0196)/filtrate volume (#0086), in partsicles/m3. | H10: =H6/'Field Survey'!G38 -> 4.072727273 | I10: FB
C11: (Unit: parrticles/m3) | D11: 1.0mm≤d<5.0mm | F11: 0204 | G11: Particle weight area density of particles with a particle diameter of less than 5 mm, calculated in principle as particle weight (#0190)/sampled area (#0082)/1,000,0000m2/km2, with the unit being particles/km2. | H11: =H7/'Field Survey'!G38 -> 3.52969697 | I11: FB / E
C12: (Particle density_m3) | D12: d<1.0mm | F12: 0216 | G12: Number of particles with diameters between 1 mm and 5 mm. | H12: =H8/'Field Survey'!G38 -> 0.543030303 | I12: FB
D13: 5.0mm≤d | F13: 0228 | G13: Volume density of the number of particles with a particle diameter between 1 mm and 5 mm, calculated in principle as the number of particles (#0202)/volume of filtered water (#0086), in partsicles/m3. | H13: =H9/'Field Survey'!G38 -> 0.1680808081
C14: Particle number density per trawl swept area | D14: d<5.0mm | F14: 0194 | G14: Area density of the number of particles with a particle diameter between 1 mm and 5 mm. In principle, it is calculated as the number of particles (#0202)/sampled area (#0082)/1,000,0000m2/km2, with the unit being particles/km2. | H14: =H7/'Field Survey'!G36*1000*1000 -> 1323636.364 | I14: FB
C15: (Unit: parrticles/km2) | D15: 1.0mm≤d<5.0mm | F15: 0206 | G15: Particle weight of particles with a diameter between 1 mm and 5 mm. | H15: =H8/'Field Survey'!G36*1000*1000 -> 203636.3636 | I15: FB / E
C16: (Particle density_km2) | D16: d<1.0mm | F16: 0218 | G16: Particle weight volume density of particles with a particle size between 1 mm and 5 mm, calculated in principle as particle weight (#0208)/filtrate volume (#0086), in partsicles/m3. | H16: =H9/'Field Survey'!G36*1000*1000 -> 63030.30303 | I16: FB
D17: 5.0mm≤d | F17: 0230 | G17: Particle weight area density of particles with a particle diameter between 1 mm and 5 mm, calculated in principle by particle weight (#0208)/sampled area (#0082)/1,000,0000m2/km2, with units of particles/km2. | H17: =H10/'Field Survey'!G36*1000*1000 -> 4936.639118
C18: Weight of plastic particles | D18: d<5.0mm | F18: 0196 | G18: Number of particles with a particle size of less than 1 mm. | H18: =H19+H20 -> 1.3 | I18: FB*
C19: (Unit: g/sample) | D19: 1.0mm≤d<5.0mm | F19: 0208 | G19: Volume density of the number of particles with a particle size of less than 1 mm, calculated in principle as the number of particles (#0214)/volume of filtered water (#0086), in partsicles/m3. | H19: 1.2 | I19: FB* / E
C20: (Total weight_g) | D20: d<1.0mm | F20: 0220 | G20: Area density of the number of particles with a particle diameter of less than 1 mm, and is calculated in principle as the number of particles (#0214)/sampled area (#0082)/1,000,0000m2/km2, with the unit being particles/km2. | H20: 0.1 | I20: FB*
D21: 5.0mm≤d | F21: 0232 | G21: Particle weight of particles less than 1 mm in diameter. | H21: 0.26
C22: Particle weight density per filtered water volume | D22: d<5.0mm | F22: 0198 | G22: Particle weight volume density of particles less than 1 mm in diameter, calculated in principle by particle weight (#0220)/filtrate volume (#0086), in partsicles/m3. | H22: =H18/'Field Survey'!G38 -> 0.004202020202 | I22: FB
C23: (Unit: g/m3) | D23: 1.0mm≤d<5.0mm | F23: 0210 | G23: Particle weight area density of particles with a particle diameter of less than 1 mm, calculated in principle as particle weight (#0220)/sampled area (#0082)/1,000,0000m2/km2, with units of particles/km2. | H23: =H19/'Field Survey'!G38 -> 0.003878787879 | I23: FB / E
C24: (Weight density_g/m3) | D24: d<1.0mm | F24: 0222 | G24: Number of particles with a particle size of 5 mm or larger. | H24: =H20/'Field Survey'!G38 -> 0.0003232323232 | I24: FB
D25: 5.0mm≤d | F25: 0234 | G25: It is the volume density of the number of particles with a particle size of 5 mm or larger, calculated in principle as the number of particles (#0226) / volume of filtered water (#0086), in partsicles/m3. | H25: =H21/'Field Survey'!G38 -> 0.0008404040404
C26: Particle weight density per trawl swept area | D26: d<5.0mm | F26: 0200 | G26: Area density of the number of particles with a particle diameter of 5 mm or larger, calculated in principle as the number of particles (#0226)/sampled area (#0082)/1,000,0000m2/km2, in partsicles/km2. | H26: =H19/'Field Survey'!G36*1000*1000 -> 1454.545455 | I26: FB
C27: (Unit: g/km2) | D27: 1.0mm≤d<5.0mm | F27: 0212 | G27: Particle weight of particles with a particle size of 5 mm or larger. | H27: =H20/'Field Survey'!G36*1000*1000 -> 121.2121212 | I27: FB / E
C28: (Weight density_g/km2) | D28: d<1.0mm | F28: 0224 | G28: Particle weight volume density of particles with a particle size of 5 mm or larger, calculated in principle as particle weight (#0232)/filtrate volume (#0086), in partsicles/m3. | H28: =H21/'Field Survey'!G36*1000*1000 -> 315.1515152 | I28: FB
D29: 5.0mm≤d | F29: 0236 | G29: Particle weight area density of particles with a particle diameter of 5 mm or larger, calculated in principle as particle weight (#0232)/sampled area (#0082)/1,000,0000m2/km2, with the unit being particles/km2. | H29: =H22/'Field Survey'!G36*1000*1000 -> 5.093357821
C30: Percentage per shape | D30: d<5.0mm | E30: Shape category 1 | F30: 0238 | G30: Percentage of plastic particles with a diameter of less than 5 mm, by shape. in units of %. If 'Others' is selected for any of "Shape category 1" to "Shape category 5," please enter values that sum up from "Shape percentage 1" to "Shape percentage 5" to 100%. | H30: Fragments
C31: (Unit: %) | E31: Shape_percentage 1 | F31: 0240 | H31: 40
E32: Shape category 2 | F32: 0242 | H32: Beads
E33: Shape_percentage 2 | F33: 0244 | H33: 26
E34: Shape category 3 | F34: 0246 | H34: Pellets
E35: Shape_percentage 3 | F35: 0248 | H35: 14
E36: Shape category 4 | F36: 0250 | H36: Fibers
E37: Shape_percentage 4 | F37: 0252 | H37: 13
E38: Shape category 5 | F38: 0254 | H38: Others
E39: Shape_percentage 5 | F39: 0256 | H39: 7
E40: Total | F40: - | H40: =IF(COUNT(H31,H33,H35,H37,H39)>0,H31+H33+H35+H37+H39,"") -> 100 | J40: =IF(COUNT(J31,J33,J35,J37,J39)>0,J31+J33+J35+J37+J39,"") ->  | BV40: =IF(COUNT(BV31,BV33,BV35,BV37,BV39)>0,BV31+BV33+BV35+BV37+BV39,"") ->  | EH40: =IF(COUNT(EH31,EH33,EH35,EH37,EH39)>0,EH31+EH33+EH35+EH37+EH39,"") ->  | GT40: =IF(COUNT(GT31,GT33,GT35,GT37,GT39)>0,GT31+GT33+GT35+GT37+GT39,"") -> 
D41: 1.0mm≤d<5.0mm | E41: Shape category 1 | F41: 0298 | G41: Percentage of plastic particles with a diameter of less than 5 mm but greater than 1 mm, by shape. in units of %. If 'Others' is selected for any of "Shape category 1" to "Shape category 5," please enter values that sum up from "Shape percentage 1" to "Shape percentage 5" to 100%. | H41: Fragments | I41: E
E42: Shape_percentage 1 | F42: 0300 | H42: 40
E43: Shape category 2 | F43: 0302 | H43: Beads
E44: Shape_percentage 2 | F44: 0304 | H44: 26
E45: Shape category 3 | F45: 0306 | H45: Pellets
E46: Shape_percentage 3 | F46: 0308 | H46: 14
E47: Shape category 4 | F47: 0310 | H47: Fibers
E48: Shape_percentage 4 | F48: 0312 | H48: 13
E49: Shape category 5 | F49: 0314 | H49: Others
E50: Shape_percentage 5 | F50: 0316 | H50: 7
E51: Total | F51: - | H51: =IF(COUNT(H42,H44,H46,H48,H50)>0,H42+H44+H46+H48+H50,"") -> 100 | BU51: =IF(COUNT(BU42,BU44,BU46,BU48,BU50)>0,BU42+BU44+BU46+BU48+BU50,"") ->  | EG51: =IF(COUNT(EG42,EG44,EG46,EG48,EG50)>0,EG42+EG44+EG46+EG48+EG50,"") ->  | GS51: =IF(COUNT(GS42,GS44,GS46,GS48,GS50)>0,GS42+GS44+GS46+GS48+GS50,"") -> 
D52: d<1.0mm | E52: Shape category 1 | F52: 0358 | G52: Percentage of plastic particles with a diameter of less than 1 mm, by shape. in units of %. If 'Others' is selected for any of "Shape category 1" to "Shape category 5," please enter values that sum up from "Shape percentage 1" to "Shape percentage 5" to 100%. | H52: Fragments
E53: Shape_percentage 1 | F53: 0360 | H53: 40
E54: Shape category 2 | F54: 0362 | H54: Beads
E55: Shape_percentage 2 | F55: 0364 | H55: 26
E56: Shape category 3 | F56: 0366 | H56: Pellets
E57: Shape_percentage 3 | F57: 0368 | H57: 14
E58: Shape category 4 | F58: 0370 | H58: Fibers
E59: Shape_percentage 4 | F59: 0372 | H59: 13
E60: Shape category 5 | F60: 0374 | H60: Others
E61: Shape_percentage 5 | F61: 0376 | H61: 7
E62: Total | F62: - | H62: =IF(COUNT(H53,H55,H57,H59,H61)>0,H53+H55+H57+H59+H61,"") -> 100 | BU62: =IF(COUNT(BU53,BU55,BU57,BU59,BU61)>0,BU53+BU55+BU57+BU59+BU61,"") ->  | EG62: =IF(COUNT(EG53,EG55,EG57,EG59,EG61)>0,EG53+EG55+EG57+EG59+EG61,"") ->  | GS62: =IF(COUNT(GS53,GS55,GS57,GS59,GS61)>0,GS53+GS55+GS57+GS59+GS61,"") -> 
C63: Percentage per material | D63: d<5.0mm | E63: Material category 1 | F63: 0258 | G63: Percentage of plastic particles with a diameter of less than 5 mm, by material, in units of %. If 'Others' is selected for any of "Material category 1" to "Material category 5," please enter values that sum up from "Material percentage 1" to "Material percentage 5" to 100%. | H63: PE
C64: (Unit: %) | E64: Material_percentage 1 | F64: 0260 | H64: 56
E65: Material category 2 | F65: 0262 | H65: PP
E66: Material_percentage 2 | F66: 0264 | H66: 30
E67: Material category 3 | F67: 0266 | H67: PS
E68: Material_percentage 3 | F68: 0268 | H68: 10
E69: Material category 4 | F69: 0270 | H69: PU
E70: Material_percentage 4 | F70: 0272 | H70: 3
E71: Material category 5 | F71: 0274 | H71: Others
E72: Material_percentage 5 | F72: 0276 | H72: 1
E73: Total | F73: - | H73: =IF(COUNT(H64,H66,H68,H70,H72)>0,H64+H66+H68+H70+H72,"") -> 100 | BU73: =IF(COUNT(BU64,BU66,BU68,BU70,BU72)>0,BU64+BU66+BU68+BU70+BU72,"") ->  | EG73: =IF(COUNT(EG64,EG66,EG68,EG70,EG72)>0,EG64+EG66+EG68+EG70+EG72,"") ->  | GS73: =IF(COUNT(GS64,GS66,GS68,GS70,GS72)>0,GS64+GS66+GS68+GS70+GS72,"") -> 
D74: 1.0mm≤d<5.0mm | E74: Material category 1 | F74: 0318 | G74: Percentage of plastic particles with a diameter of 1 mm or more and less than 5 mm, by material, in units of %. If 'Others' is selected for any of "Material category 1" to "Material category 5," please enter values that sum up from "Material percentage 1" to "Material percentage 5" to 100%. | H74: PE
E75: Material_percentage 1 | F75: 0320 | H75: 56
E76: Material category 2 | F76: 0322 | H76: PP
E77: Material_percentage 2 | F77: 0324 | H77: 30
E78: Material category 3 | F78: 0326 | H78: PS
E79: Material_percentage 3 | F79: 0328 | H79: 10
E80: Material category 4 | F80: 0330 | H80: PU
E81: Material_percentage 4 | F81: 0332 | H81: 3
E82: Material category 5 | F82: 0334 | H82: Others
E83: Material_percentage 5 | F83: 0336 | H83: 1
E84: Total | F84: - | H84: =IF(COUNT(H75,H77,H79,H81,H83)>0,H75+H77+H79+H81+H83,"") -> 100 | BU84: =IF(COUNT(BU75,BU77,BU79,BU81,BU83)>0,BU75+BU77+BU79+BU81+BU83,"") ->  | EG84: =IF(COUNT(EG75,EG77,EG79,EG81,EG83)>0,EG75+EG77+EG79+EG81+EG83,"") ->  | GS84: =IF(COUNT(GS75,GS77,GS79,GS81,GS83)>0,GS75+GS77+GS79+GS81+GS83,"") -> 
D85: d<1.0mm | E85: Material category 1 | F85: 0378 | G85: Percentage of plastic particles with a diameter of less than 1 mm, by material, in units of %. If 'Others' is selected for any of "Material category 1" to "Material category 5," please enter values that sum up from "Material percentage 1" to "Material percentage 5" to 100%. | H85: PE
E86: Material_percentage 1 | F86: 0380 | H86: 56
E87: Material category 2 | F87: 0382 | H87: PP
E88: Material_percentage 2 | F88: 0384 | H88: 30
E89: Material category 3 | F89: 0386 | H89: PS
E90: Material_percentage 3 | F90: 0388 | H90: 10
E91: Material category 4 | F91: 0390 | H91: PU
E92: Material_percentage 4 | F92: 0392 | H92: 3
E93: Material category 5 | F93: 0394 | H93: Others
E94: Material_percentage 5 | F94: 0396 | H94: 1
E95: Total | F95: - | H95: =IF(COUNT(H86,H88,H90,H92,H94)>0,H86+H88+H90+H92+H94,"") -> 100 | BU95: =IF(COUNT(BU86,BU88,BU90,BU92,BU94)>0,BU86+BU88+BU90+BU92+BU94,"") ->  | EG95: =IF(COUNT(EG86,EG88,EG90,EG92,EG94)>0,EG86+EG88+EG90+EG92+EG94,"") ->  | GS95: =IF(COUNT(GS86,GS88,GS90,GS92,GS94)>0,GS86+GS88+GS90+GS92+GS94,"") -> 
C96: Percentage per colour | D96: d<5.0mm | E96: Colour category 1 | F96: 0278 | G96: Percentage of plastic particles with a diameter of less than 5 mm, by shape, in units of %. If 'Uncategorized' is selected for any of "Colour category 1" to "Colour category 5," please enter values that sum up from "Colour percentage 1" to "Colour percentage 5" to 100%. | H96: Transparent
C97: (Unit: %) | E97: Colour_percentage 1 | F97: 0280 | H97: 36
E98: Colour category 2 | F98: 0282 | H98: White
E99: Colour_percentage 2 | F99: 0284 | H99: 30
E100: Colour category 3 | F100: 0286 | H100: Green
E101: Colour_percentage 3 | F101: 0288 | H101: 20
E102: Colour category 4 | F102: 0290 | H102: Red
E103: Colour_percentage 4 | F103: 0292 | H103: 10
E104: Colour category 5 | F104: 0294 | H104: Uncategorized
E105: Colour_percentage 5 | F105: 0296 | H105: 3
E106: Total | F106: - | H106: =IF(COUNT(H97,H99,H101,H103,H105)>0,H97+H99+H101+H103+H105,"") -> 99 | BU106: =IF(COUNT(BU97,BU99,BU101,BU103,BU105)>0,BU97+BU99+BU101+BU103+BU105,"") ->  | EG106: =IF(COUNT(EG97,EG99,EG101,EG103,EG105)>0,EG97+EG99+EG101+EG103+EG105,"") ->  | GS106: =IF(COUNT(GS97,GS99,GS101,GS103,GS105)>0,GS97+GS99+GS101+GS103+GS105,"") -> 
D107: 1.0mm≤d<5.0mm | E107: Colour category 1 | F107: 0338 | G107: Percentage of plastic particles with a diameter of 1 mm or more and less than 5 mm, by shape, in units of %. If 'Uncategorized' is selected for any of "Colour category 1" to "Colour category 5," please enter values that sum up from "Colour percentage 1" to "Colour percentage 5" to 100%. | H107: Transparent
E108: Colour_percentage 1 | F108: 0340 | H108: 36
E109: Colour category 2 | F109: 0342 | H109: White
E110: Colour_percentage 2 | F110: 0344 | H110: 30
E111: Colour category 3 | F111: 0346 | H111: Green
E112: Colour_percentage 3 | F112: 0348 | H112: 20
E113: Colour category 4 | F113: 0350 | H113: Red
E114: Colour_percentage 4 | F114: 0352 | H114: 10
E115: Colour category 5 | F115: 0354 | H115: Uncategorized
E116: Colour_percentage 5 | F116: 0356 | H116: 3
E117: Total | F117: - | H117: =IF(COUNT(H108,H110,H112,H114,H116)>0,H108+H110+H112+H114+H116,"") -> 99 | BU117: =IF(COUNT(BU108,BU110,BU112,BU114,BU116)>0,BU108+BU110+BU112+BU114+BU116,"") ->  | EG117: =IF(COUNT(EG108,EG110,EG112,EG114,EG116)>0,EG108+EG110+EG112+EG114+EG116,"") ->  | GS117: =IF(COUNT(GS108,GS110,GS112,GS114,GS116)>0,GS108+GS110+GS112+GS114+GS116,"") -> 
D118: d<1.0mm | E118: Colour category 1 | F118: 0398 | G118: Percentage of plastic particles with a diameter of less than 1 mm, by shape, in units of %. If 'Uncategorized' is selected for any of "Colour category 1" to "Colour category 5," please enter values that sum up from "Colour percentage 1" to "Colour percentage 5" to 100%. | H118: Transparent
E119: Colour_percentage 1 | F119: 0400 | H119: 36
E120: Colour category 2 | F120: 0402 | H120: White
E121: Colour_percentage 2 | F121: 0404 | H121: 30
E122: Colour category 3 | F122: 0406 | H122: Green
E123: Colour_percentage 3 | F123: 0408 | H123: 20
E124: Colour category 4 | F124: 0410 | H124: Red
E125: Colour_percentage 4 | F125: 0412 | H125: 10
E126: Colour category 5 | F126: 0414 | H126: Uncategorized
E127: Colour_percentage 5 | F127: 0416 | H127: 3
E128: Total | F128: - | H128: =IF(COUNT(H119,H121,H123,H125,H127)>0,H119+H121+H123+H125+H127,"") -> 99 | BU128: =IF(COUNT(BU119,BU121,BU123,BU125,BU127)>0,BU119+BU121+BU123+BU125+BU127,"") ->  | EG128: =IF(COUNT(EG119,EG121,EG123,EG125,EG127)>0,EG119+EG121+EG123+EG125+EG127,"") ->  | GS128: =IF(COUNT(GS119,GS121,GS123,GS125,GS127)>0,GS119+GS121+GS123+GS125+GS127,"") -> 

Sheet Remarks
C4: All samples
C5: No. | D5: Data entry field
C6: 1
C7: =C6+1 -> 2
C8: =C7+1 -> 3
C9: 4
C10: 5
C11: 6
C12: 7
C13: 8
C14: 9
C15: 10
C16: 11
C17: 12
C18: 13
C19: 14
C20: 15
C21: 16
C22: 17
C23: 18
C24: 19
C25: 20
C26: 21
C27: 22
C28: 23
C29: 24
C30: 25
C31: 26
C32: 27
C33: 28
C34: 29
C35: 30
C37: Each samples
C38: Category | D38: Data entry field
D39: =IF(COUNTA('Field Survey'!J21)=1,'Field Survey'!J21,"") ->  | E39: =IF(COUNTA('Field Survey'!K21)=1,'Field Survey'!K21,"") ->  | F39: =IF(COUNTA('Field Survey'!L21)=1,'Field Survey'!L21,"") ->  | G39: =IF(COUNTA('Field Survey'!M21)=1,'Field Survey'!M21,"") ->  | H39: =IF(COUNTA('Field Survey'!N21)=1,'Field Survey'!N21,"") ->  | I39: =IF(COUNTA('Field Survey'!O21)=1,'Field Survey'!O21,"") ->  | J39: =IF(COUNTA('Field Survey'!P21)=1,'Field Survey'!P21,"") ->  | K39: =IF(COUNTA('Field Survey'!Q21)=1,'Field Survey'!Q21,"") ->  | L39: =IF(COUNTA('Field Survey'!R21)=1,'Field Survey'!R21,"") ->  | M39: =IF(COUNTA('Field Survey'!S21)=1,'Field Survey'!S21,"") ->  | N39: =IF(COUNTA('Field Survey'!T21)=1,'Field Survey'!T21,"") ->  | O39: =IF(COUNTA('Field Survey'!U21)=1,'Field Survey'!U21,"") ->  | P39: =IF(COUNTA('Field Survey'!V21)=1,'Field Survey'!V21,"") ->  | Q39: =IF(COUNTA('Field Survey'!W21)=1,'Field Survey'!W21,"") ->  | R39: =IF(COUNTA('Field Survey'!X21)=1,'Field Survey'!X21,"") ->  | S39: =IF(COUNTA('Field Survey'!Y21)=1,'Field Survey'!Y21,"") ->  | T39: =IF(COUNTA('Field Survey'!Z21)=1,'Field Survey'!Z21,"") ->  | U39: =IF(COUNTA('Field Survey'!AA21)=1,'Field Survey'!AA21,"") ->  | V39: =IF(COUNTA('Field Survey'!AB21)=1,'Field Survey'!AB21,"") ->  | W39: =IF(COUNTA('Field Survey'!AC21)=1,'Field Survey'!AC21,"") ->  | X39: =IF(COUNTA('Field Survey'!AD21)=1,'Field Survey'!AD21,"") ->  | Y39: =IF(COUNTA('Field Survey'!AE21)=1,'Field Survey'!AE21,"") ->  | Z39: =IF(COUNTA('Field Survey'!AF21)=1,'Field Survey'!AF21,"") ->  | AA39: =IF(COUNTA('Field Survey'!AG21)=1,'Field Survey'!AG21,"") ->  | AB39: =IF(COUNTA('Field Survey'!AH21)=1,'Field Survey'!AH21,"") ->  | AC39: =IF(COUNTA('Field Survey'!AI21)=1,'Field Survey'!AI21,"") ->  | AD39: =IF(COUNTA('Field Survey'!AJ21)=1,'Field Survey'!AJ21,"") ->  | AE39: =IF(COUNTA('Field Survey'!AK21)=1,'Field Survey'!AK21,"") ->  | AF39: =IF(COUNTA('Field Survey'!AL21)=1,'Field Survey'!AL21,"") ->  | AG39: =IF(COUNTA('Field Survey'!AM21)=1,'Field Survey'!AM21,"") ->  | AH39: =IF(COUNTA('Field Survey'!AN21)=1,'Field Survey'!AN21,"") ->  | AI39: =IF(COUNTA('Field Survey'!AO21)=1,'Field Survey'!AO21,"") ->  | AJ39: =IF(COUNTA('Field Survey'!AP21)=1,'Field Survey'!AP21,"") ->  | AK39: =IF(COUNTA('Field Survey'!AQ21)=1,'Field Survey'!AQ21,"") ->  | AL39: =IF(COUNTA('Field Survey'!AR21)=1,'Field Survey'!AR21,"") ->  | AM39: =IF(COUNTA('Field Survey'!AS21)=1,'Field Survey'!AS21,"") ->  | AN39: =IF(COUNTA('Field Survey'!AT21)=1,'Field Survey'!AT21,"") ->  | AO39: =IF(COUNTA('Field Survey'!AU21)=1,'Field Survey'!AU21,"") ->  | AP39: =IF(COUNTA('Field Survey'!AV21)=1,'Field Survey'!AV21,"") ->  | AQ39: =IF(COUNTA('Field Survey'!AW21)=1,'Field Survey'!AW21,"") ->  | AR39: =IF(COUNTA('Field Survey'!AX21)=1,'Field Survey'!AX21,"") ->  | AS39: =IF(COUNTA('Field Survey'!AY21)=1,'Field Survey'!AY21,"") ->  | AT39: =IF(COUNTA('Field Survey'!AZ21)=1,'Field Survey'!AZ21,"") ->  | AU39: =IF(COUNTA('Field Survey'!BA21)=1,'Field Survey'!BA21,"") ->  | AV39: =IF(COUNTA('Field Survey'!BB21)=1,'Field Survey'!BB21,"") ->  | AW39: =IF(COUNTA('Field Survey'!BC21)=1,'Field Survey'!BC21,"") ->  | AX39: =IF(COUNTA('Field Survey'!BD21)=1,'Field Survey'!BD21,"") ->  | AY39: =IF(COUNTA('Field Survey'!BE21)=1,'Field Survey'!BE21,"") ->  | AZ39: =IF(COUNTA('Field Survey'!BF21)=1,'Field Survey'!BF21,"") ->  | BA39: =IF(COUNTA('Field Survey'!BG21)=1,'Field Survey'!BG21,"") ->  | BB39: =IF(COUNTA('Field Survey'!BH21)=1,'Field Survey'!BH21,"") ->  | BC39: =IF(COUNTA('Field Survey'!BI21)=1,'Field Survey'!BI21,"") ->  | BD39: =IF(COUNTA('Field Survey'!BJ21)=1,'Field Survey'!BJ21,"") ->  | BE39: =IF(COUNTA('Field Survey'!BK21)=1,'Field Survey'!BK21,"") ->  | BF39: =IF(COUNTA('Field Survey'!BL21)=1,'Field Survey'!BL21,"") ->  | BG39: =IF(COUNTA('Field Survey'!BM21)=1,'Field Survey'!BM21,"") ->  | BH39: =IF(COUNTA('Field Survey'!BN21)=1,'Field Survey'!BN21,"") ->  | BI39: =IF(COUNTA('Field Survey'!BO21)=1,'Field Survey'!BO21,"") ->  | BJ39: =IF(COUNTA('Field Survey'!BP21)=1,'Field Survey'!BP21,"") ->  | BK39: =IF(COUNTA('Field Survey'!BQ21)=1,'Field Survey'!BQ21,"") ->  | BL39: =IF(COUNTA('Field Survey'!BR21)=1,'Field Survey'!BR21,"") ->  | BM39: =IF(COUNTA('Field Survey'!BS21)=1,'Field Survey'!BS21,"") ->  | BN39: =IF(COUNTA('Field Survey'!BT21)=1,'Field Survey'!BT21,"") ->  | BO39: =IF(COUNTA('Field Survey'!BU21)=1,'Field Survey'!BU21,"") ->  | BP39: =IF(COUNTA('Field Survey'!BV21)=1,'Field Survey'!BV21,"") ->  | BQ39: =IF(COUNTA('Field Survey'!BW21)=1,'Field Survey'!BW21,"") ->  | BR39: =IF(COUNTA('Field Survey'!BX21)=1,'Field Survey'!BX21,"") ->  | BS39: =IF(COUNTA('Field Survey'!BY21)=1,'Field Survey'!BY21,"") ->  | BT39: =IF(COUNTA('Field Survey'!BZ21)=1,'Field Survey'!BZ21,"") ->  | BU39: =IF(COUNTA('Field Survey'!CA21)=1,'Field Survey'!CA21,"") ->  | BV39: =IF(COUNTA('Field Survey'!CB21)=1,'Field Survey'!CB21,"") ->  | BW39: =IF(COUNTA('Field Survey'!CC21)=1,'Field Survey'!CC21,"") ->  | BX39: =IF(COUNTA('Field Survey'!CD21)=1,'Field Survey'!CD21,"") ->  | BY39: =IF(COUNTA('Field Survey'!CE21)=1,'Field Survey'!CE21,"") ->  | BZ39: =IF(COUNTA('Field Survey'!CF21)=1,'Field Survey'!CF21,"") ->  | CA39: =IF(COUNTA('Field Survey'!CG21)=1,'Field Survey'!CG21,"") ->  | CB39: =IF(COUNTA('Field Survey'!CH21)=1,'Field Survey'!CH21,"") ->  | CC39: =IF(COUNTA('Field Survey'!CI21)=1,'Field Survey'!CI21,"") ->  | CD39: =IF(COUNTA('Field Survey'!CJ21)=1,'Field Survey'!CJ21,"") ->  | CE39: =IF(COUNTA('Field Survey'!CK21)=1,'Field Survey'!CK21,"") ->  | CF39: =IF(COUNTA('Field Survey'!CL21)=1,'Field Survey'!CL21,"") ->  | CG39: =IF(COUNTA('Field Survey'!CM21)=1,'Field Survey'!CM21,"") ->  | CH39: =IF(COUNTA('Field Survey'!CN21)=1,'Field Survey'!CN21,"") ->  | CI39: =IF(COUNTA('Field Survey'!CO21)=1,'Field Survey'!CO21,"") ->  | CJ39: =IF(COUNTA('Field Survey'!CP21)=1,'Field Survey'!CP21,"") ->  | CK39: =IF(COUNTA('Field Survey'!CQ21)=1,'Field Survey'!CQ21,"") ->  | CL39: =IF(COUNTA('Field Survey'!CR21)=1,'Field Survey'!CR21,"") ->  | CM39: =IF(COUNTA('Field Survey'!CS21)=1,'Field Survey'!CS21,"") ->  | CN39: =IF(COUNTA('Field Survey'!CT21)=1,'Field Survey'!CT21,"") ->  | CO39: =IF(COUNTA('Field Survey'!CU21)=1,'Field Survey'!CU21,"") ->  | CP39: =IF(COUNTA('Field Survey'!CV21)=1,'Field Survey'!CV21,"") ->  | CQ39: =IF(COUNTA('Field Survey'!CW21)=1,'Field Survey'!CW21,"") ->  | CR39: =IF(COUNTA('Field Survey'!CX21)=1,'Field Survey'!CX21,"") ->  | CS39: =IF(COUNTA('Field Survey'!CY21)=1,'Field Survey'!CY21,"") ->  | CT39: =IF(COUNTA('Field Survey'!CZ21)=1,'Field Survey'!CZ21,"") ->  | CU39: =IF(COUNTA('Field Survey'!DA21)=1,'Field Survey'!DA21,"") ->  | CV39: =IF(COUNTA('Field Survey'!DB21)=1,'Field Survey'!DB21,"") ->  | CW39: =IF(COUNTA('Field Survey'!DC21)=1,'Field Survey'!DC21,"") ->  | CX39: =IF(COUNTA('Field Survey'!DD21)=1,'Field Survey'!DD21,"") ->  | CY39: =IF(COUNTA('Field Survey'!DE21)=1,'Field Survey'!DE21,"") ->  | CZ39: =IF(COUNTA('Field Survey'!DF21)=1,'Field Survey'!DF21,"") ->  | DA39: =IF(COUNTA('Field Survey'!DG21)=1,'Field Survey'!DG21,"") ->  | DB39: =IF(COUNTA('Field Survey'!DH21)=1,'Field Survey'!DH21,"") ->  | DC39: =IF(COUNTA('Field Survey'!DI21)=1,'Field Survey'!DI21,"") ->  | DD39: =IF(COUNTA('Field Survey'!DJ21)=1,'Field Survey'!DJ21,"") ->  | DE39: =IF(COUNTA('Field Survey'!DK21)=1,'Field Survey'!DK21,"") ->  | DF39: =IF(COUNTA('Field Survey'!DL21)=1,'Field Survey'!DL21,"") ->  | DG39: =IF(COUNTA('Field Survey'!DM21)=1,'Field Survey'!DM21,"") ->  | DH39: =IF(COUNTA('Field Survey'!DN21)=1,'Field Survey'!DN21,"") ->  | DI39: =IF(COUNTA('Field Survey'!DO21)=1,'Field Survey'!DO21,"") ->  | DJ39: =IF(COUNTA('Field Survey'!DP21)=1,'Field Survey'!DP21,"") ->  | DK39: =IF(COUNTA('Field Survey'!DQ21)=1,'Field Survey'!DQ21,"") ->  | DL39: =IF(COUNTA('Field Survey'!DR21)=1,'Field Survey'!DR21,"") ->  | DM39: =IF(COUNTA('Field Survey'!DS21)=1,'Field Survey'!DS21,"") ->  | DN39: =IF(COUNTA('Field Survey'!DT21)=1,'Field Survey'!DT21,"") ->  | DO39: =IF(COUNTA('Field Survey'!DU21)=1,'Field Survey'!DU21,"") ->  | DP39: =IF(COUNTA('Field Survey'!DV21)=1,'Field Survey'!DV21,"") ->  | DQ39: =IF(COUNTA('Field Survey'!DW21)=1,'Field Survey'!DW21,"") ->  | DR39: =IF(COUNTA('Field Survey'!DX21)=1,'Field Survey'!DX21,"") ->  | DS39: =IF(COUNTA('Field Survey'!DY21)=1,'Field Survey'!DY21,"") ->  | DT39: =IF(COUNTA('Field Survey'!DZ21)=1,'Field Survey'!DZ21,"") ->  | DU39: =IF(COUNTA('Field Survey'!EA21)=1,'Field Survey'!EA21,"") ->  | DV39: =IF(COUNTA('Field Survey'!EB21)=1,'Field Survey'!EB21,"") ->  | DW39: =IF(COUNTA('Field Survey'!EC21)=1,'Field Survey'!EC21,"") ->  | DX39: =IF(COUNTA('Field Survey'!ED21)=1,'Field Survey'!ED21,"") ->  | DY39: =IF(COUNTA('Field Survey'!EE21)=1,'Field Survey'!EE21,"") ->  | DZ39: =IF(COUNTA('Field Survey'!EF21)=1,'Field Survey'!EF21,"") ->  | EA39: =IF(COUNTA('Field Survey'!EG21)=1,'Field Survey'!EG21,"") ->  | EB39: =IF(COUNTA('Field Survey'!EH21)=1,'Field Survey'!EH21,"") ->  | EC39: =IF(COUNTA('Field Survey'!EI21)=1,'Field Survey'!EI21,"") ->  | ED39: =IF(COUNTA('Field Survey'!EJ21)=1,'Field Survey'!EJ21,"") ->  | EE39: =IF(COUNTA('Field Survey'!EK21)=1,'Field Survey'!EK21,"") ->  | EF39: =IF(COUNTA('Field Survey'!EL21)=1,'Field Survey'!EL21,"") ->  | EG39: =IF(COUNTA('Field Survey'!EM21)=1,'Field Survey'!EM21,"") ->  | EH39: =IF(COUNTA('Field Survey'!EN21)=1,'Field Survey'!EN21,"") ->  | EI39: =IF(COUNTA('Field Survey'!EO21)=1,'Field Survey'!EO21,"") ->  | EJ39: =IF(COUNTA('Field Survey'!EP21)=1,'Field Survey'!EP21,"") ->  | EK39: =IF(COUNTA('Field Survey'!EQ21)=1,'Field Survey'!EQ21,"") ->  | EL39: =IF(COUNTA('Field Survey'!ER21)=1,'Field Survey'!ER21,"") ->  | EM39: =IF(COUNTA('Field Survey'!ES21)=1,'Field Survey'!ES21,"") ->  | EN39: =IF(COUNTA('Field Survey'!ET21)=1,'Field Survey'!ET21,"") ->  | EO39: =IF(COUNTA('Field Survey'!EU21)=1,'Field Survey'!EU21,"") ->  | EP39: =IF(COUNTA('Field Survey'!EV21)=1,'Field Survey'!EV21,"") ->  | EQ39: =IF(COUNTA('Field Survey'!EW21)=1,'Field Survey'!EW21,"") ->  | ER39: =IF(COUNTA('Field Survey'!EX21)=1,'Field Survey'!EX21,"") ->  | ES39: =IF(COUNTA('Field Survey'!EY21)=1,'Field Survey'!EY21,"") ->  | ET39: =IF(COUNTA('Field Survey'!EZ21)=1,'Field Survey'!EZ21,"") ->  | EU39: =IF(COUNTA('Field Survey'!FA21)=1,'Field Survey'!FA21,"") ->  | EV39: =IF(COUNTA('Field Survey'!FB21)=1,'Field Survey'!FB21,"") ->  | EW39: =IF(COUNTA('Field Survey'!FC21)=1,'Field Survey'!FC21,"") ->  | EX39: =IF(COUNTA('Field Survey'!FD21)=1,'Field Survey'!FD21,"") ->  | EY39: =IF(COUNTA('Field Survey'!FE21)=1,'Field Survey'!FE21,"") ->  | EZ39: =IF(COUNTA('Field Survey'!FF21)=1,'Field Survey'!FF21,"") ->  | FA39: =IF(COUNTA('Field Survey'!FG21)=1,'Field Survey'!FG21,"") ->  | FB39: =IF(COUNTA('Field Survey'!FH21)=1,'Field Survey'!FH21,"") ->  | FC39: =IF(COUNTA('Field Survey'!FI21)=1,'Field Survey'!FI21,"") ->  | FD39: =IF(COUNTA('Field Survey'!FJ21)=1,'Field Survey'!FJ21,"") ->  | FE39: =IF(COUNTA('Field Survey'!FK21)=1,'Field Survey'!FK21,"") ->  | FF39: =IF(COUNTA('Field Survey'!FL21)=1,'Field Survey'!FL21,"") ->  | FG39: =IF(COUNTA('Field Survey'!FM21)=1,'Field Survey'!FM21,"") ->  | FH39: =IF(COUNTA('Field Survey'!FN21)=1,'Field Survey'!FN21,"") ->  | FI39: =IF(COUNTA('Field Survey'!FO21)=1,'Field Survey'!FO21,"") ->  | FJ39: =IF(COUNTA('Field Survey'!FP21)=1,'Field Survey'!FP21,"") ->  | FK39: =IF(COUNTA('Field Survey'!FQ21)=1,'Field Survey'!FQ21,"") ->  | FL39: =IF(COUNTA('Field Survey'!FR21)=1,'Field Survey'!FR21,"") ->  | FM39: =IF(COUNTA('Field Survey'!FS21)=1,'Field Survey'!FS21,"") ->  | FN39: =IF(COUNTA('Field Survey'!FT21)=1,'Field Survey'!FT21,"") ->  | FO39: =IF(COUNTA('Field Survey'!FU21)=1,'Field Survey'!FU21,"") ->  | FP39: =IF(COUNTA('Field Survey'!FV21)=1,'Field Survey'!FV21,"") ->  | FQ39: =IF(COUNTA('Field Survey'!FW21)=1,'Field Survey'!FW21,"") ->  | FR39: =IF(COUNTA('Field Survey'!FX21)=1,'Field Survey'!FX21,"") ->  | FS39: =IF(COUNTA('Field Survey'!FY21)=1,'Field Survey'!FY21,"") ->  | FT39: =IF(COUNTA('Field Survey'!FZ21)=1,'Field Survey'!FZ21,"") ->  | FU39: =IF(COUNTA('Field Survey'!GA21)=1,'Field Survey'!GA21,"") ->  | FV39: =IF(COUNTA('Field Survey'!GB21)=1,'Field Survey'!GB21,"") ->  | FW39: =IF(COUNTA('Field Survey'!GC21)=1,'Field Survey'!GC21,"") ->  | FX39: =IF(COUNTA('Field Survey'!GD21)=1,'Field Survey'!GD21,"") ->  | FY39: =IF(COUNTA('Field Survey'!GE21)=1,'Field Survey'!GE21,"") ->  | FZ39: =IF(COUNTA('Field Survey'!GF21)=1,'Field Survey'!GF21,"") ->  | GA39: =IF(COUNTA('Field Survey'!GG21)=1,'Field Survey'!GG21,"") ->  | GB39: =IF(COUNTA('Field Survey'!GH21)=1,'Field Survey'!GH21,"") ->  | GC39: =IF(COUNTA('Field Survey'!GI21)=1,'Field Survey'!GI21,"") ->  | GD39: =IF(COUNTA('Field Survey'!GJ21)=1,'Field Survey'!GJ21,"") ->  | GE39: =IF(COUNTA('Field Survey'!GK21)=1,'Field Survey'!GK21,"") ->  | GF39: =IF(COUNTA('Field Survey'!GL21)=1,'Field Survey'!GL21,"") ->  | GG39: =IF(COUNTA('Field Survey'!GM21)=1,'Field Survey'!GM21,"") ->  | GH39: =IF(COUNTA('Field Survey'!GN21)=1,'Field Survey'!GN21,"") ->  | GI39: =IF(COUNTA('Field Survey'!GO21)=1,'Field Survey'!GO21,"") ->  | GJ39: =IF(COUNTA('Field Survey'!GP21)=1,'Field Survey'!GP21,"") ->  | GK39: =IF(COUNTA('Field Survey'!GQ21)=1,'Field Survey'!GQ21,"") ->  | GL39: =IF(COUNTA('Field Survey'!GR21)=1,'Field Survey'!GR21,"") ->  | GM39: =IF(COUNTA('Field Survey'!GS21)=1,'Field Survey'!GS21,"") ->  | GN39: =IF(COUNTA('Field Survey'!GT21)=1,'Field Survey'!GT21,"") ->  | GO39: =IF(COUNTA('Field Survey'!GU21)=1,'Field Survey'!GU21,"") ->  | GP39: =IF(COUNTA('Field Survey'!GV21)=1,'Field Survey'!GV21,"") ->  | GQ39: =IF(COUNTA('Field Survey'!GW21)=1,'Field Survey'!GW21,"") ->  | GR39: =IF(COUNTA('Field Survey'!GX21)=1,'Field Survey'!GX21,"") ->  | GS39: =IF(COUNTA('Field Survey'!GY21)=1,'Field Survey'!GY21,"") ->  | GT39: =IF(COUNTA('Field Survey'!GZ21)=1,'Field Survey'!GZ21,"") ->  | GU39: =IF(COUNTA('Field Survey'!HA21)=1,'Field Survey'!HA21,"") -> 
C40: 1
C41: =C40+1 -> 2
C42: =C41+1 -> 3
C43: 4
C44: 5
C45: 6
C46: 7
C47: 8
C48: 9
C49: 10
C50: 11
C51: 12
C52: 13
C53: 14
C54: 15
C55: 16
C56: 17
C57: 18
C58: 19
C59: 20
C60: 21
C61: 22
C62: 23
C63: 24
C64: 25
C65: 26
C66: 27
C67: 28
C68: 29
C69: 30

Sheet List
A3: 1 | B3: 2 | C3: 3 | D3: 4 | E3: 5 | F3: 6 | G3: 7 | H3: 8 | I3: 9 | J3: 10 | K3: 11 | L3: 12 | M3: 13 | N3: 14 | O3: 15 | P3: 16 | Q3: 17 | R3: 18 | S3: 19 | T3: 20 | U3: 21 | V3: 22 | W3: 23 | X3: 24 | Y3: 25 | Z3: 26 | AA3: 27 | AB3: 28 | AC3: 29 | AD3: 30 | AE3: 31 | AF3: 32 | AG3: 33 | AH3: 34 | AI3: 35 | AJ3: 36 | AK3: 37 | AL3: 38 | AM3: 39 | AN3: 40 | AO3: 41 | AP3: 42 | AQ3: 43 | AR3: 44 | AS3: 45 | AT3: 46 | AU3: 47 | AV3: 48 | AW3: 49 | AX3: 50 | AY3: 51 | AZ3: 52 | BA3: 53 | BB3: 54 | BC3: 55 | BD3: 56 | BE3: 57 | BF3: 58 | BG3: 59 | BH3: 60 | BI3: 61 | BJ3: 62 | BK3: 63 | BL3: 64 | BM3: 65 | BN3: 66 | BO3: 67 | BP3: 68 | BQ3: 69 | BR3: 70 | BS3: 71 | BT3: 72 | BU3: 73 | BV3: 74 | BW3: 75 | BX3: 76 | BY3: 77 | BZ3: 78 | CA3: 79 | CB3: 80 | CC3: 81 | CD3: 82 | CE3: 83 | CF3: 84 | CG3: 85 | CH3: 86 | CI3: 87 | CJ3: 88 | CK3: 89 | CL3: 90 | CM3: 91 | CN3: 92 | CO3: 93 | CP3: 94 | CQ3: 95 | CR3: 96 | CS3: 97 | CT3: 98 | CU3: 99 | CV3: 100 | CW3: 101 | CX3: 102 | CY3: 103 | CZ3: 104 | DA3: 105 | DB3: 106 | DC3: 107 | DD3: 108 | DE3: 109 | DF3: 110 | DG3: 111 | DH3: 112 | DI3: 113 | DJ3: 114 | DK3: 115 | DL3: 116 | DM3: 117 | DN3: 118 | DO3: 119 | DP3: 120 | DQ3: 121 | DR3: 122 | DS3: 123 | DT3: 124 | DU3: 125 | DV3: 126 | DW3: 127 | DX3: 128 | DY3: 129 | DZ3: 130 | EA3: 131 | EB3: 132 | EC3: 133 | ED3: 134 | EE3: 135 | EF3: 136 | EG3: 137 | EH3: 138 | EI3: 139 | EJ3: 140 | EK3: 141 | EL3: 142 | EM3: 143 | EN3: 144 | EO3: 145 | EP3: 146 | EQ3: 147 | ER3: 148 | ES3: 149 | ET3: 150 | EU3: 151 | EV3: 152 | EW3: 153 | EX3: 154 | EY3: 155 | EZ3: 156 | FA3: 157 | FB3: 158 | FC3: 159 | FD3: 160 | FE3: 161 | FF3: 162 | FG3: 163 | FH3: 164 | FI3: 165 | FJ3: 166 | FK3: 167 | FL3: 168 | FM3: 169 | FN3: 170 | FO3: 171 | FP3: 172 | FQ3: 173 | FR3: 174 | FS3: 175 | FT3: 176 | FU3: 177 | FV3: 178 | FW3: 179 | FX3: 180 | FY3: 181 | FZ3: 182 | GA3: 183 | GB3: 184 | GC3: 185 | GD3: 186 | GE3: 187 | GF3: 188 | GG3: 189 | GH3: 190 | GI3: 191 | GJ3: 192 | GK3: 193 | GL3: 194 | GM3: 195 | GN3: 196 | GO3: 197 | GP3: 198 | GQ3: 199 | GR3: 200 | GS3: 201 | GT3: 202 | GU3: 203 | GV3: 204 | GW3: 205 | GX3: 206 | GY3: 207 | GZ3: 208 | HA3: 209 | HB3: 210 | HC3: 211 | HD3: 212 | HE3: 213 | HF3: 214 | HG3: 215 | HH3: 216 | HI3: 217 | HJ3: 218 | HK3: 219 | HL3: 220 | HM3: 221 | HN3: 222 | HO3: 223 | HP3: 224 | HQ3: 225 | HR3: 226 | HS3: 227 | HT3: 228 | HU3: 229 | HV3: 230 | HW3: 231 | HX3: 232 | HY3: 233 | HZ3: 234 | IA3: 235 | IB3: 236 | IC3: 237 | ID3: 238 | IE3: 239 | IF3: 240 | IG3: 241 | IH3: 242 | II3: 243 | IJ3: 244 | IK3: 245 | IL3: 246 | IM3: 247 | IN3: 248 | IO3: 249 | IP3: 250 | IQ3: 251 | IR3: 252 | IS3: 253 | IT3: 254 | IU3: 255 | IV3: 256 | IW3: 257 | IX3: 258 | IY3: 259 | IZ3: 260 | JA3: 261 | JB3: 262 | JC3: 263 | JD3: 264 | JE3: 265 | JF3: 266 | JG3: 267 | JH3: 268 | JI3: 269 | JJ3: 270 | JK3: 271 | JL3: 272 | JM3: 273 | JN3: 274 | JO3: 275 | JP3: 276 | JQ3: 277 | JR3: 278 | JS3: 279 | JT3: 280 | JU3: 281 | JV3: 282 | JW3: 283 | JX3: 284 | JY3: 285 | JZ3: 286 | KA3: 287 | KB3: 288 | KC3: 289 | KD3: 290 | KE3: 291 | KF3: 292 | KG3: 293 | KH3: 294 | KI3: 295 | KJ3: 296 | KK3: 297 | KL3: 298 | KM3: 299 | KN3: 300 | KO3: 301 | KP3: 302 | KQ3: 303 | KR3: 304 | KS3: 305 | KT3: 306 | KU3: 307 | KV3: 308 | KW3: 309 | KX3: 310 | KY3: 311 | KZ3: 312 | LA3: 313 | LB3: 314 | LC3: 315 | LD3: 316 | LE3: 317 | LF3: 318 | LG3: 319 | LH3: 320 | LI3: 321 | LJ3: 322 | LK3: 323 | LL3: 324 | LM3: 325 | LN3: 326 | LO3: 327 | LP3: 328 | LQ3: 329 | LR3: 330 | LS3: 331 | LT3: 332 | LU3: 333 | LV3: 334 | LW3: 335 | LX3: 336 | LY3: 337 | LZ3: 338 | MA3: 339 | MB3: 340 | MC3: 341 | MD3: 342 | ME3: 343 | MF3: 344 | MG3: 345 | MH3: 346 | MI3: 347 | MJ3: 348 | MK3: 349 | ML3: 350 | MM3: 351 | MN3: 352 | MO3: 353 | MP3: 354 | MQ3: 355 | MR3: 356 | MS3: 357 | MT3: 358 | MU3: 359 | MV3: 360 | MW3: 361 | MX3: 362 | MY3: 363 | MZ3: 364 | NA3: 365 | NB3: 366 | NC3: 367 | ND3: 368 | NE3: 369 | NF3: 370 | NG3: 371 | NH3: 372 | NI3: 373 | NJ3: 374 | NK3: 375 | NL3: 376 | NM3: 377 | NN3: 378 | NO3: 379 | NP3: 380 | NQ3: 381 | NR3: 382 | NS3: 383 | NT3: 384 | NU3: 385 | NV3: 386 | NW3: 387 | NX3: 388 | NY3: 389 | NZ3: 390 | OA3: 391 | OB3: 392 | OC3: 393 | OD3: 394 | OE3: 395 | OF3: 396 | OG3: 397 | OH3: 398 | OI3: 399 | OJ3: 400 | OK3: 401 | OL3: 402 | OM3: 403 | ON3: 404 | OO3: 405 | OP3: 406 | OQ3: 407 | OR3: 408 | OS3: 409 | OT3: 410 | OU3: 411 | OV3: 412 | OW3: 413 | OX3: 414 | OY3: 415 | OZ3: 416 | PA3: 417 | PB3: 418
A4: Data ID | B4: Data version | C4: Release Date | D4: Name | E4: QC code of #0004 | F4: Location | G4: QC code of #0006 | H4: Location code | I4: Organization | J4: QC code of #0009 | K4: Organization code | L4: Cruise name | M4: QC code of #0012 | N4: Reference | O4: QC code of #0014 | P4: DOI | Q4: QC code of #0016 | R4: Creative commons license | S4: QC code of #0018 | T4: Provide ID | U4: QC Data grade | V4: Processing level | W4: Processing methods | X4: Reference of data before processing | Y4: QC code of #0024 | Z4: DOI of data before processing | AA4: QC code of #0026 | AB4: Data ID of data before processing | AC4: Sample name/ ID | AD4: QC code of #0029 | AE4: Time Diff (hours) | AF4: QC code of #0031 | AG4: Sampling start Date | AH4: QC code of #0033 | AI4: Sampling end Date | AJ4: QC code of #0035 | AK4: Sampling start time | AL4: QC code of #0037 | AM4: Sampling end time | AN4: QC code of #0039 | AO4: Season | AP4: QC code of #0041 | AQ4: Sampling Location | AR4: QC code of #0043 | AS4: GPS_Lat Int | AT4: QC code of #0045 | AU4: GPS_Lon Int | AV4: QC code of #0047 | AW4: GPS_Lat Fin | AX4: QC code of #0049 | AY4: GPS_Lon Fin | AZ4: QC code of #0051 | BA4: Ship name | BB4: QC code of #0053 | BC4: Ship code | BD4: Equipment Type | BE4: QC code of #0056 | BF4: Equipment Model | BG4: QC code of #0058 | BH4: Shape of water intake | BI4: QC code of #0060 | BJ4: Intake Width (m) | BK4: QC code of #0062 | BL4: Intake Height (m) | BM4: QC code of #0064 | BN4: Intake Area (m2) | BO4: QC code of #0066 | BP4: Net Length (m) | BQ4: QC code of #0068 | BR4: Mesh openings (mm) | BS4: QC code of #0070 | BT4: Mesh Side or diagonal | BU4: QC code of #0072 | BV4: Mesh Model | BW4: QC code of #0074 | BX4: Sampling_Distance (m) | BY4: QC code of #0076 | BZ4: Method of #76 | CA4: QC code of #0078 | CB4: Calculation formula of #76 | CC4: QC code of #0080 | CD4: Sampling Area (m2) | CE4: QC code of #0082 | CF4: Calculation formula of #82 | CG4: QC code of #0084 | CH4: Filtered Water Volume (m3) | CI4: QC code of #0086 | CJ4: Calculation formula of #86 | CK4: QC code of #0088 | CL4: Sampling duration | CM4: QC code of #0090 | CN4: Vessel speed (knot/ relative to water) | CO4: QC code of #0092 | CP4: Sampling gear position | CQ4: QC code of #0094 | CR4: Distance from vessel (m) | CS4: QC code of #0096 | CT4: Lower end depth (m) | CU4: QC code of #0098 | CV4: Lower end depth (%) | CW4: QC code of #0100 | CX4: Lower end depth Change or not | CY4: QC code of #0102 | CZ4: Tow direction | DA4: QC code of #0104 | DB4: Blank test: conducted or not | DC4: QC code of #0106 | DD4: Results of the blank test | DE4: QC code of #0108 | DF4: Wind direction (degrees) | DG4: QC code of #0110 | DH4: Wind speed (m/s) | DI4: QC code of #0112 | DJ4: Significant wave height (m) | DK4: QC code of #0114 | DL4: Beaufort scale | DM4: QC code of #0116 | DN4: Vessels movements | DO4: QC code of #0118 | DP4: Sea surface temperature (degrees Celsius) | DQ4: QC code of #0120 | DR4: Sea surface salinity (-) | DS4: QC code of #0122 | DT4: Water current direction | DU4: QC code of #0124 | DV4: Water current speed (knot) | DW4: QC code of #0126 | DX4: Other water quality data 1: | DY4: QC code of #0128 | DZ4: Other water quality data 2: | EA4: QC code of #0130 | EB4: Other water quality data 3: | EC4: QC code of #0132 | ED4: Other water quality data 4: | EE4: QC code of #0134 | EF4: State of floating debris | EG4: QC code of #0136 | EH4: Density separation conducted or not | EI4: QC code of #0138 | EJ4: Solution type for density separation | EK4: QC code of #0140 | EL4: Concentration for density separation (%) | EM4: QC code of #0142 | EN4: Processing Time (min) | EO4: QC code of #0144 | EP4: Biological digestiion and chemical treat | EQ4: QC code of #0146 | ER4: Methods used for digesting | ES4: QC code of #0148 | ET4: Temperature during processing (degrees Celsius) | EU4: QC code of #0150 | EV4: Reaction time (min) | EW4: QC code of #0152 | EX4: Sample splitting conducted or not | EY4: QC code of #0154 | EZ4: Method or equipment of splitting | FA4: QC code of #0156 | FB4: Estimated error range of splitting | FC4: QC code of #0158 | FD4: Pretreatment conducted or not | FE4: QC code of #0160 | FF4: Type of pretreatment | FG4: QC code of #0162 | FH4: Under stereomicroscope or not | FI4: QC code of #0164 | FJ4: Method of size fractionation | FK4: QC code of #0166 | FL4: Composition analysis conducted or not | FM4: QC code of #0168 | FN4: Method of composition analysis | FO4: QC code of #0170 | FP4: Percentage to composition analysis (%) | FQ4: QC code of #0172 | FR4: Temperature of sample drying (degrees Celsius) | FS4: QC code of #0174 | FT4: Humidity of sample drying (%) | FU4: QC code of #0176 | FV4: Processing time of sample drying (min) | FW4: QC code of #0178 | FX4: Methods of weight measurements | FY4: QC code of #0180 | FZ4: Blank tests _Conducted or not | GA4: QC code of #0182 | GB4: Blank tests_Results | GC4: QC code of #0184 | GD4: Spiked recovery tests_Conducted or not | GE4: QC code of #0186 | GF4: Spiked recovery tests_Results (%) | GG4: QC code of #0188 | GH4: Total Number of Particles (d<5mm) | GI4: QC code of #0190 | GJ4: Particle density_m3 (d<5mm) | GK4: QC code of #0192 | GL4: Particle density_km2 (d<5mm) | GM4: QC code of #0194 | GN4: Total weight_g (d<5mm) | GO4: QC code of #0196 | GP4: Weight density_g/m3 (d<5mm) | GQ4: QC code of #0198 | GR4: Weight density_g/km2 (d<5mm) | GS4: QC code of #0200 | GT4: Total Number of Particles (1-d<5mm) | GU4: QC code of #0202 | GV4: Particle density_m3 (1-d<5mm) | GW4: QC code of #0204 | GX4: Particle density_km2 (1-d<5mm) | GY4: QC code of #0206 | GZ4: Total weight_g (1-d<5mm) | HA4: QC code of #0208 | HB4: Weight density_g/m3 (1-d<5mm) | HC4: QC code of #0210 | HD4: Weight density_g/km2 (1-d<5mm) | HE4: QC code of #0212 | HF4: Total Number of Particles (d<1mm) | HG4: QC code of #0214 | HH4: Particle density_m3 (d<1mm) | HI4: QC code of #0216 | HJ4: Particle density_km2 (d<1mm) | HK4: QC code of #0218 | HL4: Total weight_g (d<1mm) | HM4: QC code of #0220 | HN4: Weight density_g/m3 (d<1mm) | HO4: QC code of #0222 | HP4: Weight density_g/km2 (d<1mm) | HQ4: QC code of #0224 | HR4: Total Number of Particles (5mm-d) | HS4: QC code of #0226 | HT4: Particle density_m3 (5mm-d) | HU4: QC code of #0228 | HV4: Particle density_km2 (5mm-d) | HW4: QC code of #0230 | HX4: Total weight_g (5mm-d) | HY4: QC code of #0232 | HZ4: Weight density_g/m3 (5mm-d) | IA4: QC code of #0234 | IB4: Weight density_g/km2 (5mm-d) | IC4: QC code of #0236 | ID4: Shape_category 1 (d<5mm) | IE4: QC code of #0238 | IF4: Shape_percentage 1 (d<5mm) | IG4: QC code of #0240 | IH4: Shape_category 2 (d<5mm) | II4: QC code of #0242 | IJ4: Shape_percentage 2 (d<5mm) | IK4: QC code of #0244 | IL4: Shape_category 3 (d<5mm) | IM4: QC code of #0246 | IN4: Shape_percentage 3 (d<5mm) | IO4: QC code of #0248 | IP4: Shape_category 4 (d<5mm) | IQ4: QC code of #0250 | IR4: Shape_percentage 4 (d<5mm) | IS4: QC code of #0252 | IT4: Shape_category 5 (d<5mm) | IU4: QC code of #0254 | IV4: Shape_percentage 5 (d<5mm) | IW4: QC code of #0256 | IX4: Material_category 1 (d<5mm) | IY4: QC code of #0258 | IZ4: Material_percentage 1 (d<5mm) | JA4: QC code of #0260 | JB4: Material_category 2 (d<5mm) | JC4: QC code of #0262 | JD4: Material_percentage 2 (d<5mm) | JE4: QC code of #0264 | JF4: Material_category 3 (d<5mm) | JG4: QC code of #0266 | JH4: Material_percentage 3 (d<5mm) | JI4: QC code of #0268 | JJ4: Material_category 4 (d<5mm) | JK4: QC code of #0270 | JL4: Material_percentage 4 (d<5mm) | JM4: QC code of #0272 | JN4: Material_category 5 (d<5mm) | JO4: QC code of #0274 | JP4: Material_percentage 5 (d<5mm) | JQ4: QC code of #0276 | JR4: Colour_category 1 (d<5mm) | JS4: QC code of #0278 | JT4: Colour_percentage 1 (d<5mm) | JU4: QC code of #0280 | JV4: Colour_category 2 (d<5mm) | JW4: QC code of #0282 | JX4: Colour_percentage 2 (d<5mm) | JY4: QC code of #0284 | JZ4: Colour_category 3 (d<5mm) | KA4: QC code of #0286 | KB4: Colour_percentage 3 (d<5mm) | KC4: QC code of #0288 | KD4: Colour_category 4 (d<5mm) | KE4: QC code of #0290 | KF4: Colour_percentage 4 (d<5mm) | KG4: QC code of #0292 | KH4: Colour_category 5 (d<5mm) | KI4: QC code of #0294 | KJ4: Colour_percentage 5 (d<5mm) | KK4: QC code of #0296 | KL4: Shape_category 1 (1-d<5mm) | KM4: QC code of #0298 | KN4: Shape_percentage 1 (1-d<5mm) | KO4: QC code of #0300 | KP4: Shape_category 2 (1-d<5mm) | KQ4: QC code of #0302 | KR4: Shape_percentage 2 (1-d<5mm) | KS4: QC code of #0304 | KT4: Shape_category 3 (1-d<5mm) | KU4: QC code of #0306 | KV4: Shape_percentage 3 (1-d<5mm) | KW4: QC code of #0308 | KX4: Shape_category 4 (1-d<5mm) | KY4: QC code of #0310 | KZ4: Shape_percentage 4 (1-d<5mm) | LA4: QC code of #0312 | LB4: Shape_category 5 (1-d<5mm) | LC4: QC code of #0314 | LD4: Shape_percentage 5 (1-d<5mm) | LE4: QC code of #0316 | LF4: Material_category 1 (1-d<5mm) | LG4: QC code of #0318 | LH4: Material_percentage 1 (1-d<5mm) | LI4: QC code of #0320 | LJ4: Material_category 2 (1-d<5mm) | LK4: QC code of #0322 | LL4: Material_percentage 2 (1-d<5mm) | LM4: QC code of #0324 | LN4: Material_category 3 (1-d<5mm) | LO4: QC code of #0326 | LP4: Material_percentage 3 (1-d<5mm) | LQ4: QC code of #0328 | LR4: Material_category 4 (1-d<5mm) | LS4: QC code of #0330 | LT4: Material_percentage 4 (1-d<5mm) | LU4: QC code of #0332 | LV4: Material_category 5 (1-d<5mm) | LW4: QC code of #0334 | LX4: Material_percentage 5 (1-d<5mm) | LY4: QC code of #0336 | LZ4: Colour_category 1 (1-d<5mm) | MA4: QC code of #0338 | MB4: Colour_percentage 1 (1-d<5mm) | MC4: QC code of #0340 | MD4: Colour_category 2 (1-d<5mm) | ME4: QC code of #0342 | MF4: Colour_percentage 2 (1-d<5mm) | MG4: QC code of #0344 | MH4: Colour_category 3 (1-d<5mm) | MI4: QC code of #0346 | MJ4: Colour_percentage 3 (1-d<5mm) | MK4: QC code of #0348 | ML4: Colour_category 4 (1-d<5mm) | MM4: QC code of #0350 | MN4: Colour_percentage 4 (1-d<5mm) | MO4: QC code of #0352 | MP4: Colour_category 5 (1-d<5mm) | MQ4: QC code of #0354 | MR4: Colour_percentage 5 (1-d<5mm) | MS4: QC code of #0356 | MT4: Shape_category 1 (d<1mm) | MU4: QC code of #0358 | MV4: Shape_percentage 1 (d<1mm) | MW4: QC code of #0360 | MX4: Shape_category 2 (d<1mm) | MY4: QC code of #0362 | MZ4: Shape_percentage 2 (d<1mm) | NA4: QC code of #0364 | NB4: Shape_category 3 (d<1mm) | NC4: QC code of #0366 | ND4: Shape_percentage 3 (d<1mm) | NE4: QC code of #0368 | NF4: Shape_category 4 (d<1mm) | NG4: QC code of #0370 | NH4: Shape_percentage 4 (d<1mm) | NI4: QC code of #0372 | NJ4: Shape_category 5 (d<1mm) | NK4: QC code of #0374 | NL4: Shape_percentage 5 (d<1mm) | NM4: QC code of #0376 | NN4: Material_category 1 (d<1mm) | NO4: QC code of #0378 | NP4: Material_percentage 1 (d<1mm) | NQ4: QC code of #0380 | NR4: Material_category 2 (d<1mm) | NS4: QC code of #0382 | NT4: Material_percentage 2 (d<1mm) | NU4: QC code of #0384 | NV4: Material_category 3 (d<1mm) | NW4: QC code of #0386 | NX4: Material_percentage 3 (d<1mm) | NY4: QC code of #0388 | NZ4: Material_category 4 (d<1mm) | OA4: QC code of #0390 | OB4: Material_percentage 4 (d<1mm) | OC4: QC code of #0392 | OD4: Material_category 5 (d<1mm) | OE4: QC code of #0394 | OF4: Material_percentage 5 (d<1mm) | OG4: QC code of #0396 | OH4: Colour_category 1 (d<1mm) | OI4: QC code of #0398 | OJ4: Colour_percentage 1 (d<1mm) | OK4: QC code of #0400 | OL4: Colour_category 2 (d<1mm) | OM4: QC code of #0402 | ON4: Colour_percentage 2 (d<1mm) | OO4: QC code of #0404 | OP4: Colour_category 3 (d<1mm) | OQ4: QC code of #0406 | OR4: Colour_percentage 3 (d<1mm) | OS4: QC code of #0408 | OT4: Colour_category 4 (d<1mm) | OU4: QC code of #0410 | OV4: Colour_percentage 4 (d<1mm) | OW4: QC code of #0412 | OX4: Colour_category 5 (d<1mm) | OY4: QC code of #0414 | OZ4: Colour_percentage 5 (d<1mm) | PA4: QC code of #0416 | PB4: Remarks

Sheet Code (hidden)
A1: 1 | B1: =A1+1 -> 2 | C1: =B1+1 -> 3 | D1: 4 | E1: 5 | F1: 6 | G1: 7 | H1: 8 | I1: 9 | J1: 10 | K1: 11 | L1: 12
B2: #0011 | C2: Type of Organization | J2: Grade 3 | L2: Grade 4 | N2: Code Subject
C3: Type | D3: Code | J3: Must | L3: Must
J4: 33 | L4: 31 | N4: 4
C5: University | D5: 1 | J5: 45 | L5: 33 | N5: 6
C6: Other research institution | D6: 2 | J6: 47 | L6: 35 | N6: 9
C7: Government or International organisation | D7: 3 | J7: any | L7: 37 | N7: 12
C8: Non-university educational institution | D8: 4 | J8: 192 | L8: 39 | N8: 14
C9: NPO/NGO | D9: 5 | J9: 194 | L9: 41 | N9: 16
C10: Other | D10: 6 | J10: 198 | L10: 45 | N10: 18
J11: 200 | L11: 47 | N11: 24
B12: #0006 | C12: Location of Organization (ISO 3166-1) | J12: =J8+12 -> 204 | L12: 49 | N12: 26
C13: English short name (using title case) | D13: Numeric code | J13: =J9+12 -> 206 | L13: 51 | N13: 29
J14: 210 | L14: 56 | N14: 31
C15: Afghanistan | D15: 004 | J15: 212 | L15: 60 | N15: 33
C16: Åland Islands | D16: 248 | J16: =J12+12 -> 216 | L16: 62 | N16: 35
C17: Albania | D17: 008 | J17: 218 | L17: 64 | N17: 37
C18: Algeria | D18: 012 | J18: 222 | L18: 66 | N18: 39
C19: American Samoa | D19: 016 | J19: 224 | L19: 68 | N19: 41
C20: Andorra | D20: 020 | L20: 70 | N20: 43
C21: Angola | D21: 024 | L21: 72 | N21: 45
C22: Anguilla | D22: 660 | L22: 76 | N22: 47
C23: Antarctica | D23: 010 | L23: 78 | N23: 49
C24: Antigua and Barbuda | D24: 028 | L24: 80 | N24: 51
C25: Argentina | D25: 032 | L25: 82 | N25: 53
C26: Armenia | D26: 051 | L26: 84 | N26: 56
C27: Aruba | D27: 533 | L27: 86 | N27: 58
C28: Australia | D28: 036 | L28: 88 | N28: 60
C29: Austria | D29: 040 | L29: 90 | N29: 62
C30: Azerbaijan | D30: 031 | L30: 92 | N30: 64
C31: Bahamas | D31: 044 | L31: 94 | N31: 66
C32: Bahrain | D32: 048 | L32: 96 | N32: 68
C33: Bangladesh | D33: 050 | L33: 98 | N33: 70
C34: Barbados | D34: 052 | L34: 104 | N34: 72
C35: Belarus | D35: 112 | L35: 106 | N35: 74
C36: Belgium | D36: 056 | L36: 108 | N36: 76
C37: Belize | D37: 084 | L37: 110 | N37: 78
C38: Benin | D38: 204 | L38: 112 | N38: 80
C39: Bermuda | D39: 060 | L39: 116 | N39: 82
C40: Bhutan | D40: 064 | L40: 118 | N40: 84
C41: Bolivia (Plurinational State of) | D41: 068 | L41: 120 | N41: 86
C42: Bonaire, Sint Eustatius and Saba | D42: 535 | L42: 122 | N42: 88
C43: Bosnia and Herzegovina | D43: 070 | L43: 136 | N43: 90
C44: Botswana | D44: 072 | L44: 138 | N44: 92
C45: Bouvet Island | D45: 074 | L45: 140 | N45: 94
C46: Brazil | D46: 076 | L46: 142 | N46: 96
C47: British Indian Ocean Territory | D47: 086 | L47: 146 | N47: 98
C48: Brunei Darussalam | D48: 096 | L48: 148 | N48: 100
C49: Bulgaria | D49: 100 | L49: 150 | N49: 102
C50: Burkina Faso | D50: 854 | L50: 152 | N50: 104
C51: Burundi | D51: 108 | L51: 154 | N51: 106
C52: Cabo Verde | D52: 132 | L52: 156 | N52: 108
C53: Cambodia | D53: 116 | L53: 160 | N53: 110
C54: Cameroon | D54: 120 | L54: 164 | N54: 112
C55: Canada | D55: 124 | L55: 166 | N55: 114
C56: Cayman Islands | D56: 136 | L56: 168 | N56: 116
C57: Central African Republic | D57: 140 | L57: 170 | N57: 118
C58: Chad | D58: 148 | L58: 172 | N58: 120
C59: Chile | D59: 152 | L59: 174 | N59: 122
C60: China | D60: 156 | L60: 178 | N60: 124
C61: Christmas Island | D61: 162 | L61: 180 | N61: 126
C62: Cocos (Keeling) Islands | D62: 166 | L62: 182 | N62: 128
C63: Colombia | D63: 170 | L63: 186 | N63: 130
C64: Comoros | D64: 174 | L64: 204 | N64: 132
C65: Congo | D65: 178 | L65: 206 | N65: 134
C66: Congo, Democratic Republic of the | D66: 180 | L66: 210 | N66: 136
C67: Cook Islands | D67: 184 | L67: 212 | N67: 138
C68: Costa Rica | D68: 188 | L68: 298 | N68: 140
C69: Côte d'Ivoire | D69: 384 | N69: 142
C70: Croatia | D70: 191 | N70: 144
C71: Cuba | D71: 192 | N71: 146
C72: Curaçao | D72: 531 | N72: 148
C73: Cyprus | D73: 196 | N73: 150
C74: Czechia | D74: 203 | N74: 152
C75: Denmark | D75: 208 | N75: 154
C76: Djibouti | D76: 262 | N76: 156
C77: Dominica | D77: 212 | N77: 158
C78: Dominican Republic | D78: 214 | N78: 160
C79: Ecuador | D79: 218 | N79: 162
C80: Egypt | D80: 818 | N80: 164
C81: El Salvador | D81: 222 | N81: 166
C82: Equatorial Guinea | D82: 226 | N82: 168
C83: Eritrea | D83: 232 | N83: 170
C84: Estonia | D84: 233 | N84: 172
C85: Eswatini | D85: 748 | N85: 174
C86: Ethiopia | D86: 231 | N86: 176
C87: Falkland Islands (Malvinas) | D87: 238 | N87: 178
C88: Faroe Islands | D88: 234 | N88: 180
C89: Fiji | D89: 242 | N89: 182
C90: Finland | D90: 246 | N90: 184
C91: France | D91: 250 | N91: 186
C92: French Guiana | D92: 254 | N92: 188
C93: French Polynesia | D93: 258 | N93: 190
C94: French Southern Territories | D94: 260 | N94: 192
C95: Gabon | D95: 266 | N95: 194
C96: Gambia | D96: 270 | N96: 196
C97: Georgia | D97: 268 | N97: 198
C98: Germany | D98: 276 | N98: 200
C99: Ghana | D99: 288 | N99: 202
C100: Gibraltar | D100: 292 | N100: 204
C101: Greece | D101: 300 | N101: 206
C102: Greenland | D102: 304 | N102: 208
C103: Grenada | D103: 308 | N103: 210
C104: Guadeloupe | D104: 312 | N104: 212
C105: Guam | D105: 316 | N105: 214
C106: Guatemala | D106: 320 | N106: 216
C107: Guernsey | D107: 831 | N107: 218
C108: Guinea | D108: 324 | N108: 220
C109: Guinea-Bissau | D109: 624 | N109: 222
C110: Guyana | D110: 328 | N110: 224
C111: Haiti | D111: 332 | N111: 226
C112: Heard Island and McDonald Islands | D112: 334 | N112: 228
C113: Holy See | D113: 336 | N113: 230
C114: Honduras | D114: 340 | N114: 232
C115: Hong Kong | D115: 344 | N115: 234
C116: Hungary | D116: 348 | N116: 236
C117: Iceland | D117: 352 | N117: 238
C118: India | D118: 356 | N118: 240
C119: Indonesia | D119: 360 | N119: 242
C120: Iran (Islamic Republic of) | D120: 364 | N120: 244
C121: Iraq | D121: 368 | N121: 246
C122: Ireland | D122: 372 | N122: 248
C123: Isle of Man | D123: 833 | N123: 250
C124: Israel | D124: 376 | N124: 252
C125: Italy | D125: 380 | N125: 254
C126: Jamaica | D126: 388 | N126: 256
C127: Japan | D127: 392 | N127: 258
C128: Jersey | D128: 832 | N128: 260
C129: Jordan | D129: 400 | N129: 262
C130: Kazakhstan | D130: 398 | N130: 264
C131: Kenya | D131: 404 | N131: 266
C132: Kiribati | D132: 296 | N132: 268
C133: Korea (Democratic People's Republic of) | D133: 408 | N133: 270
C134: Korea, Republic of | D134: 410 | N134: 272
C135: Kuwait | D135: 414 | N135: 274
C136: Kyrgyzstan | D136: 417 | N136: 276
C137: Lao People's Democratic Republic | D137: 418 | N137: 278
C138: Latvia | D138: 428 | N138: 280
C139: Lebanon | D139: 422 | N139: 282
C140: Lesotho | D140: 426 | N140: 284
C141: Liberia | D141: 430 | N141: 286
C142: Libya | D142: 434 | N142: 288
C143: Liechtenstein | D143: 438 | N143: 290
C144: Lithuania | D144: 440 | N144: 292
C145: Luxembourg | D145: 442 | N145: 294
C146: Macao | D146: 446 | N146: 296
C147: Madagascar | D147: 450 | N147: 298
C148: Malawi | D148: 454 | N148: 300
C149: Malaysia | D149: 458 | N149: 302
C150: Maldives | D150: 462 | N150: 304
C151: Mali | D151: 466 | N151: 306
C152: Malta | D152: 470 | N152: 308
C153: Marshall Islands | D153: 584 | N153: 310
C154: Martinique | D154: 474 | N154: 312
C155: Mauritania | D155: 478 | N155: 314
C156: Mauritius | D156: 480 | N156: 316
C157: Mayotte | D157: 175 | N157: 318
C158: Mexico | D158: 484 | N158: 320
C159: Micronesia (Federated States of) | D159: 583 | N159: 322
C160: Moldova, Republic of | D160: 498 | N160: 324
C161: Monaco | D161: 492 | N161: 326
C162: Mongolia | D162: 496 | N162: 328
C163: Montenegro | D163: 499 | N163: 330
C164: Montserrat | D164: 500 | N164: 332
C165: Morocco | D165: 504 | N165: 334
C166: Mozambique | D166: 508 | N166: 336
C167: Myanmar | D167: 104 | N167: 338
C168: Namibia | D168: 516 | N168: 340
C169: Nauru | D169: 520 | N169: 342
C170: Nepal | D170: 524 | N170: 344
C171: Netherlands | D171: 528 | N171: 346
C172: New Caledonia | D172: 540 | N172: 348
C173: New Zealand | D173: 554 | N173: 350
C174: Nicaragua | D174: 558 | N174: 352
C175: Niger | D175: 562 | N175: 354
C176: Nigeria | D176: 566 | N176: 356
C177: Niue | D177: 570 | N177: 358
C178: Norfolk Island | D178: 574 | N178: 360
C179: North Macedonia | D179: 807 | N179: 362
C180: Northern Mariana Islands | D180: 580 | N180: 364
C181: Norway | D181: 578 | N181: 366
C182: Oman | D182: 512 | N182: 368
C183: Pakistan | D183: 586 | N183: 370
C184: Palau | D184: 585 | N184: 372
C185: Palestine, State of | D185: 275 | N185: 374
C186: Panama | D186: 591 | N186: 376
C187: Papua New Guinea | D187: 598 | N187: 378
C188: Paraguay | D188: 600 | N188: 380
C189: Peru | D189: 604 | N189: 382
C190: Philippines | D190: 608 | N190: 384
C191: Pitcairn | D191: 612 | N191: 386
C192: Poland | D192: 616 | N192: 388
C193: Portugal | D193: 620 | N193: 390
C194: Puerto Rico | D194: 630 | N194: 392
C195: Qatar | D195: 634 | N195: 394
C196: Réunion | D196: 638 | N196: 396
C197: Romania | D197: 642 | N197: 398
C198: Russian Federation | D198: 643 | N198: 400
C199: Rwanda | D199: 646 | N199: 402
C200: Saint Barthélemy | D200: 652 | N200: 404
... 489 more rows

Sheet Check(Macro programs)
A1: Result of data checking by macro programs "Data Check 1" and "Data Check 2"
A2: 1355
A4: No. | B4: Sheet | C4: Sample ID | D4: Item Name | E4: Item ID | F4: QC code | G4: Suggestion

Sheet Check(Manual)
A1: Result of data check manually by operator
A4: No. | B4: Sheet | C4: Sample ID | D4: Item Name | E4: Item ID | F4: QC code | G4: Suggestion

Sheet CheckData (hidden)
A1: 1 | B1: =A1+1 -> 2 | C1: =B1+1 -> 3 | D1: 4 | E1: 5 | F1: 6 | G1: 7 | H1: 8 | I1: 9 | J1: 10 | K1: 11 | L1: 12 | M1: 13 | N1: 14 | O1: 15 | P1: 16 | Q1: 17 | R1: 18 | S1: 19 | T1: 20 | U1: 21 | V1: 22 | W1: 23 | X1: 24 | Y1: 25 | Z1: 26 | AA1: 27 | AB1: 28 | AC1: 29 | AD1: 30 | AE1: 31 | AF1: 32 | AG1: 33 | AH1: 34 | AI1: 35 | AJ1: 36 | AK1: =AJ1+1 -> 37 | AL1: 38 | AM1: 39 | AN1: 40 | AO1: 41 | AP1: 42 | AQ1: 43 | AR1: 44 | AS1: 45 | AT1: 46 | AU1: 47 | AV1: 48
AR2: Grade 3 | AT2: Grade 4 | AV2: QC Code Subject
B3: Must be entered. | F3: QC codeの消去 | J3: あることが望ましいデータ | P3: 一定範囲以上だと警告 | W3: 一定範囲以下だと警告 | AD3: 入力が可能だと考えられるデータ | AR3: Must | AT3: Must
B4: QC code | C4: ID | D4: Sheet | E4: Item | G4: ID | J4: QC code | K4: ID | L4: Sheet | M4: Item | N4: Suggestion | P4: QC code | Q4: ID | R4: Sheet | S4: Item | T4: 閾値 | U4: Suggestion | W4: QC code | X4: ID | Y4: Sheet | Z4: Item | AB4: Suggestion | AD4: QC code | AE4: ID | AF4: Sheet | AG4: Item | AH4: ID | AI4: Sheet | AJ4: Item | AR4: 33 | AT4: 31 | AV4: 4
B5: 1 | C5: 4 | D5: Data set info. | F5: 0 | G5: 5 | H5: QC code of #0004 | J5: 6 | K5: 18 | L5: Data set info. | M5: Creative Commons licence | N5: Please state your copyright under a 'Creative Commons licence. | P5: 1 | Q5: 31 | R5: Field Survey | S5: Time Diff | T5: 14 | U5: Time Diff must be from -12 to 14." | W5: 1 | X5: 31 | Y5: Field Survey | Z5: Time Diff | AA5: -12 | AB5: Time Diff must be from -12 to 14." | AD5: 6 | AE5: 76 | AF5: Field Survey | AG5: Sampling_Distance | AH5: 62 | AI5: Field Survey | AJ5: Intake Width | AM5: 240 | AN5: 300 | AO5: 360 | AP5: Sum of 'Shape percentages' was more than 100%. | AR5: 45 | AT5: 33 | AV5: 6
B6: 1 | C6: 33 | D6: Field Survey | F6: 0 | G6: 7 | H6: QC code of #0006 | J6: 6 | K6: 29 | L6: Field Survey | M6: Sample name/ID | N6: Sample name/ID' should be entered to distinguish it from other data. | P6: 3 | Q6: 76 | R6: Field Survey | S6: Sampling_Distance | T6: 10000 | U6: Sampling Distance' is more than 10 km, too long?. | W6: 1 | X6: 45 | Y6: Field Survey | Z6: GPS_Lat Int | AA6: -90 | AB6: GPS_Lat' must be from -90 to 90. | AD6: 6 | AE6: 76 | AF6: Field Survey | AG6: Sampling_Distance | AH6: 82 | AI6: Field Survey | AJ6: Sampling Area | AM6: 260 | AN6: 320 | AO6: 380 | AP6: Sum of 'Material percentages' was more than 100%. | AR6: 47 | AT6: 35 | AV6: 9
B7: 1 | C7: 45 | D7: Field Survey | F7: 0 | G7: 10 | H7: QC code of #0009 | J7: 6 | K7: 31 | L7: Field Survey | M7: Time Diff | N7: Time Diff' should be entered to match e.g. meteorological data. | P7: 1 | Q7: 45 | R7: Field Survey | S7: GPS_Lat Int | T7: 90 | U7: GPS_Lat' must be from -90 to 90. | W7: 1 | X7: 47 | Y7: Field Survey | Z7: GPS_Lon Int | AA7: -180 | AB7: GPS_Lon' must be from -180 to 180. | AD7: 6 | AE7: 82 | AF7: Field Survey | AG7: Sampling Area | AH7: 62 | AI7: Field Survey | AJ7: Intake Width | AM7: 280 | AN7: 340 | AO7: 400 | AP7: Sum of 'Colour percentages' was more than 100%. | AR7: any | AT7: 37 | AV7: 12
B8: 1 | C8: 47 | D8: Field Survey | F8: 0 | G8: 13 | H8: QC code of #0012 | J8: 6 | K8: 37 | L8: Field Survey | M8: Sampling start time | N8: Sampling start time' should be entered to match e.g. meteorological data. | P8: 1 | Q8: 47 | R8: Field Survey | S8: GPS_Lon Int | T8: 180 | U8: GPS_Lon' must be from -180 to 180. | W8: 1 | X8: 49 | Y8: Field Survey | Z8: GPS_Lat Fin | AA8: -90 | AB8: GPS_Lat' must be from -90 to 90. | AD8: 6 | AE8: 82 | AF8: Field Survey | AG8: Sampling Area | AH8: 76 | AI8: Field Survey | AJ8: Sampling_Distance | AR8: 192 | AT8: 39 | AV8: 14
F9: 0 | G9: 15 | H9: QC code of #0014 | J9: 6 | K9: 41 | L9: Field Survey | M9: Season | N9: Season' should be entered to understand the sea conditions. | P9: 1 | Q9: 49 | R9: Field Survey | S9: GPS_Lat Fin | T9: 90 | U9: GPS_Lat' must be from -90 to 90. | W9: 1 | X9: 51 | Y9: Field Survey | Z9: GPS_Lon Fin | AA9: -180 | AB9: GPS_Lon' must be from -180 to 180. | AD9: 6 | AE9: 98 | AF9: Field Survey | AG9: Lower end depth | AH9: 64 | AI9: Field Survey | AJ9: Intake Height | AR9: 194 | AT9: 41 | AV9: 16
F10: 0 | G10: 17 | H10: QC code of #0016 | P10: 1 | Q10: 51 | R10: Field Survey | S10: GPS_Lon Fin | T10: 180 | U10: GPS_Lon' must be from -180 to 180. | W10: 1 | X10: 116 | Y10: Field Survey | Z10: Beaufort scale | AA10: 0 | AB10: Beaufort scale' must be an integer between 0 and 12. | AD10: 6 | AE10: 98 | AF10: Field Survey | AG10: Lower end depth (m) | AH10: 100 | AI10: Field Survey | AJ10: Lower end depth (%) | AR10: 198 | AT10: 45 | AV10: 18
F11: 0 | G11: 19 | H11: QC code of #0018 | P11: 3 | Q11: 62 | R11: Field Survey | S11: Intake Width | T11: 2 | U11: Intake Width' is more than 2 m, too long? | W11: 1 | X11: 120 | Y11: Field Survey | Z11: Sea surface temperature | AA11: 0 | AB11: Sea surface temperature' is must from 0 to 100 degree Celsius. | AD11: 6 | AE11: 100 | AF11: Field Survey | AG11: Lower end depth (%) | AH11: 64 | AI11: Field Survey | AJ11: Intake Height | AR11: 200 | AT11: 47 | AV11: 24
F12: 0 | G12: 25 | H12: QC code of #0024 | P12: 3 | Q12: 64 | R12: Field Survey | S12: Intake Height | T12: 2 | U12: Intake Height' is more than 2 m, too long? | AD12: 6 | AE12: 100 | AF12: Field Survey | AG12: Lower end depth (%) | AH12: 98 | AI12: Field Survey | AJ12: Lower end depth (m) | AR12: =AR8+12 -> 204 | AT12: 49 | AV12: 26
F13: 0 | G13: 27 | H13: QC code of #0026 | P13: 3 | Q13: 66 | R13: Field Survey | S13: Intake Area | T13: 4 | U13: Intake Area' is more than 4 m2, too large? | AD13: 6 | AE13: 86 | AF13: Field Survey | AG13: Filtered Water Volume | AH13: 66 | AI13: Field Survey | AJ13: Intake Area | AR13: =AR9+12 -> 206 | AT13: 51 | AV13: 29
F14: 0 | G14: 30 | H14: QC code of #0029 | P14: 3 | Q14: 68 | R14: Field Survey | S14: Net Length | T14: 10 | U14: Net Length' is more than 10 m, too long? | AD14: 6 | AE14: 86 | AF14: Field Survey | AG14: Filtered Water Volume | AH14: 76 | AI14: Field Survey | AJ14: Sampling_Distance | AR14: 210 | AT14: 56 | AV14: 31
F15: 0 | G15: 32 | H15: QC code of #0031 | P15: 3 | Q15: 70 | R15: Field Survey | S15: Mesh openings | T15: 2 | U15: Mesh openings' is more than 2 mm, too wide? | AD15: 6 | AE15: 86 | AF15: Field Survey | AG15: Filtered Water Volume | AH15: 100 | AI15: Field Survey | AJ15: Lower end depth (%) | AM15: The percentage must not exceed 100 %. | AR15: 212 | AT15: 60 | AV15: 33
F16: 0 | G16: 34 | H16: QC code of #0033 | P16: 3 | Q16: 92 | R16: Field Survey | S16: Vessel speed | T16: 10 | U16: Vessel speed' is more than 10 knot, too fast? | AR16: =AR12+12 -> 216 | AT16: 62 | AV16: 35
F17: 0 | G17: 36 | H17: QC code of #0035 | P17: 3 | Q17: 112 | R17: Field Survey | S17: Wind speed | T17: 30 | U17: Wind speed' is more than 30 m/s, too fast? | AR17: 218 | AT17: 64 | AV17: 37
F18: 0 | G18: 38 | H18: QC code of #0037 | P18: 3 | Q18: 114 | R18: Field Survey | S18: Significant wave height | T18: 10 | U18: Significant wave height' is more than 10 m, too high? | AR18: 222 | AT18: 66 | AV18: 39
F19: 0 | G19: 40 | H19: QC code of #0039 | P19: 1 | Q19: 116 | R19: Field Survey | S19: Beaufort scale | T19: 12 | U19: Beaufort scale' must be an integer between 0 and 12. | AR19: 224 | AT19: 68 | AV19: 41
F20: 0 | G20: 42 | H20: QC code of #0041 | P20: 1 | Q20: 120 | R20: Field Survey | S20: Sea surface temperature | T20: 100 | U20: Sea surface temperature' is must from 0 to 100 degree Celsius. | AT20: 70 | AV20: 43
F21: 0 | G21: 44 | H21: QC code of #0043 | P21: 3 | Q21: 120 | R21: Field Survey | S21: Sea surface temperature | T21: 40 | U21: Sea surface temperature' is over 40 degree Celsius, too high? | AT21: 72 | AV21: 45
F22: 0 | G22: 46 | H22: QC code of #0045 | P22: 3 | Q22: 122 | R22: Field Survey | S22: Sea surface salinity | T22: 40 | U22: Sea surface salinity' is more than 40, too high? | AT22: 76 | AV22: 47
F23: 0 | G23: 48 | H23: QC code of #0047 | P23: 3 | Q23: 126 | R23: Field Survey | S23: Water current speed | T23: 10 | U23: Water current speed' is more than 10 knot, too fast? | AT23: 78 | AV23: 49
F24: 0 | G24: 50 | H24: QC code of #0049 | AT24: 80 | AV24: 51
F25: 0 | G25: 52 | H25: QC code of #0051 | AT25: 82 | AV25: 53
F26: 0 | G26: 54 | H26: QC code of #0053 | AT26: 84 | AV26: 56
F27: 0 | G27: 57 | H27: QC code of #0056 | AT27: 86 | AV27: 58
F28: 0 | G28: 59 | H28: QC code of #0058 | AT28: 88 | AV28: 60
F29: 0 | G29: 61 | H29: QC code of #0060 | AT29: 90 | AV29: 62
F30: 0 | G30: 63 | H30: QC code of #0062 | AT30: 92 | AV30: 64
F31: 0 | G31: 65 | H31: QC code of #0064 | AT31: 94 | AV31: 66
F32: 0 | G32: 67 | H32: QC code of #0066 | AT32: 96 | AV32: 68
F33: 0 | G33: 69 | H33: QC code of #0068 | AT33: 98 | AV33: 70
F34: 0 | G34: 71 | H34: QC code of #0070 | AT34: 104 | AV34: 72
F35: 0 | G35: 73 | H35: QC code of #0072 | AT35: 106 | AV35: 74
F36: 0 | G36: 75 | H36: QC code of #0074 | AT36: 108 | AV36: 76
F37: 0 | G37: 77 | H37: QC code of #0076 | AT37: 110 | AV37: 78
F38: 0 | G38: 79 | H38: QC code of #0078 | AT38: 112 | AV38: 80
F39: 0 | G39: 81 | H39: QC code of #0080 | AT39: 116 | AV39: 82
F40: 0 | G40: 83 | H40: QC code of #0082 | AT40: 118 | AV40: 84
F41: 0 | G41: 85 | H41: QC code of #0084 | AT41: 120 | AV41: 86
F42: 0 | G42: 87 | H42: QC code of #0086 | AT42: 122 | AV42: 88
F43: 0 | G43: 89 | H43: QC code of #0088 | AT43: 136 | AV43: 90
F44: 0 | G44: 91 | H44: QC code of #0090 | AT44: 138 | AV44: 92
F45: 0 | G45: 93 | H45: QC code of #0092 | AT45: 140 | AV45: 94
F46: 0 | G46: 95 | H46: QC code of #0094 | AT46: 142 | AV46: 96
F47: 0 | G47: 97 | H47: QC code of #0096 | AT47: 146 | AV47: 98
F48: 0 | G48: 99 | H48: QC code of #0098 | AT48: 148 | AV48: 100
F49: 0 | G49: 101 | H49: QC code of #0100 | AT49: 150 | AV49: 102
F50: 0 | G50: 103 | H50: QC code of #0102 | AT50: 152 | AV50: 104
F51: 0 | G51: 105 | H51: QC code of #0104 | AT51: 154 | AV51: 106
F52: 0 | G52: 107 | H52: QC code of #0106 | AT52: 156 | AV52: 108
F53: 0 | G53: 109 | H53: QC code of #0108 | AT53: 160 | AV53: 110
F54: 0 | G54: 111 | H54: QC code of #0110 | AT54: 164 | AV54: 112
F55: 0 | G55: 113 | H55: QC code of #0112 | AT55: 166 | AV55: 114
F56: 0 | G56: 115 | H56: QC code of #0114 | AT56: 168 | AV56: 116
F57: 0 | G57: 117 | H57: QC code of #0116 | AT57: 170 | AV57: 118
F58: 0 | G58: 119 | H58: QC code of #0118 | AT58: 172 | AV58: 120
F59: 0 | G59: 121 | H59: QC code of #0120 | AT59: 174 | AV59: 122
F60: 0 | G60: 123 | H60: QC code of #0122 | AT60: 178 | AV60: 124
F61: 0 | G61: 125 | H61: QC code of #0124 | AT61: 180 | AV61: 126
F62: 0 | G62: 127 | H62: QC code of #0126 | AT62: 182 | AV62: 128
F63: 0 | G63: 129 | H63: QC code of #0128 | AT63: 186 | AV63: 130
F64: 0 | G64: 131 | H64: QC code of #0130 | AT64: 204 | AV64: 132
F65: 0 | G65: 133 | H65: QC code of #0132 | AT65: 206 | AV65: 134
F66: 0 | G66: 135 | H66: QC code of #0134 | AT66: 210 | AV66: 136
F67: 0 | G67: 137 | H67: QC code of #0136 | AT67: 212 | AV67: 138
F68: 0 | G68: 139 | H68: QC code of #0138 | AT68: 298 | AV68: 140
F69: 0 | G69: 141 | H69: QC code of #0140 | AV69: 142
F70: 0 | G70: 143 | H70: QC code of #0142 | AV70: 144
F71: 0 | G71: 145 | H71: QC code of #0144 | AV71: 146
F72: 0 | G72: 147 | H72: QC code of #0146 | AV72: 148
F73: 0 | G73: 149 | H73: QC code of #0148 | AV73: 150
F74: 0 | G74: 151 | H74: QC code of #0150 | AV74: 152
F75: 0 | G75: 153 | H75: QC code of #0152 | AV75: 154
F76: 0 | G76: 155 | H76: QC code of #0154 | AV76: 156
F77: 0 | G77: 157 | H77: QC code of #0156 | AV77: 158
F78: 0 | G78: 159 | H78: QC code of #0158 | AV78: 160
F79: 0 | G79: 161 | H79: QC code of #0160 | AV79: 162
F80: 0 | G80: 163 | H80: QC code of #0162 | AV80: 164
F81: 0 | G81: 165 | H81: QC code of #0164 | AV81: 166
F82: 0 | G82: 167 | H82: QC code of #0166 | AV82: 168
F83: 0 | G83: 169 | H83: QC code of #0168 | AV83: 170
F84: 0 | G84: 171 | H84: QC code of #0170 | AV84: 172
F85: 0 | G85: 173 | H85: QC code of #0172 | AV85: 174
F86: 0 | G86: 175 | H86: QC code of #0174 | AV86: 176
F87: 0 | G87: 177 | H87: QC code of #0176 | AV87: 178
F88: 0 | G88: 179 | H88: QC code of #0178 | AV88: 180
F89: 0 | G89: 181 | H89: QC code of #0180 | AV89: 182
F90: 0 | G90: 183 | H90: QC code of #0182 | AV90: 184
F91: 0 | G91: 185 | H91: QC code of #0184 | AV91: 186
F92: 0 | G92: 187 | H92: QC code of #0186 | AV92: 188
F93: 0 | G93: 189 | H93: QC code of #0188 | AV93: 190
F94: 0 | G94: 191 | H94: QC code of #0190 | AV94: 192
F95: 0 | G95: 193 | H95: QC code of #0192 | AV95: 194
F96: 0 | G96: 195 | H96: QC code of #0194 | AV96: 196
F97: 0 | G97: 197 | H97: QC code of #0196 | AV97: 198
F98: 0 | G98: 199 | H98: QC code of #0198 | AV98: 200
F99: 0 | G99: 201 | H99: QC code of #0200 | AV99: 202
F100: 0 | G100: 203 | H100: QC code of #0202 | AV100: 204
F101: 0 | G101: 205 | H101: QC code of #0204 | AV101: 206
F102: 0 | G102: 207 | H102: QC code of #0206 | AV102: 208
F103: 0 | G103: 209 | H103: QC code of #0208 | AV103: 210
F104: 0 | G104: 211 | H104: QC code of #0210 | AV104: 212
F105: 0 | G105: 213 | H105: QC code of #0212 | AV105: 214
F106: 0 | G106: 215 | H106: QC code of #0214 | AV106: 216
F107: 0 | G107: 217 | H107: QC code of #0216 | AV107: 218
F108: 0 | G108: 219 | H108: QC code of #0218 | AV108: 220
F109: 0 | G109: 221 | H109: QC code of #0220 | AV109: 222
F110: 0 | G110: 223 | H110: QC code of #0222 | AV110: 224
F111: 0 | G111: 225 | H111: QC code of #0224 | AV111: 226
F112: 0 | G112: 227 | H112: QC code of #0226 | AV112: 228
F113: 0 | G113: 229 | H113: QC code of #0228 | AV113: 230
F114: 0 | G114: 231 | H114: QC code of #0230 | AV114: 232
F115: 0 | G115: 233 | H115: QC code of #0232 | AV115: 234
F116: 0 | G116: 235 | H116: QC code of #0234 | AV116: 236
F117: 0 | G117: 237 | H117: QC code of #0236 | AV117: 238
F118: 0 | G118: 239 | H118: QC code of #0238 | AV118: 240
F119: 0 | G119: 241 | H119: QC code of #0240 | AV119: 242
F120: 0 | G120: 243 | H120: QC code of #0242 | AV120: 244
F121: 0 | G121: 245 | H121: QC code of #0244 | AV121: 246
F122: 0 | G122: 247 | H122: QC code of #0246 | AV122: 248
F123: 0 | G123: 249 | H123: QC code of #0248 | AV123: 250
F124: 0 | G124: 251 | H124: QC code of #0250 | AV124: 252
F125: 0 | G125: 253 | H125: QC code of #0252 | AV125: 254
F126: 0 | G126: 255 | H126: QC code of #0254 | AV126: 256
F127: 0 | G127: 257 | H127: QC code of #0256 | AV127: 258
F128: 0 | G128: 259 | H128: QC code of #0258 | AV128: 260
F129: 0 | G129: 261 | H129: QC code of #0260 | AV129: 262
F130: 0 | G130: 263 | H130: QC code of #0262 | AV130: 264
F131: 0 | G131: 265 | H131: QC code of #0264 | AV131: 266
F132: 0 | G132: 267 | H132: QC code of #0266 | AV132: 268
F133: 0 | G133: 269 | H133: QC code of #0268 | AV133: 270
F134: 0 | G134: 271 | H134: QC code of #0270 | AV134: 272
F135: 0 | G135: 273 | H135: QC code of #0272 | AV135: 274
F136: 0 | G136: 275 | H136: QC code of #0274 | AV136: 276
F137: 0 | G137: 277 | H137: QC code of #0276 | AV137: 278
F138: 0 | G138: 279 | H138: QC code of #0278 | AV138: 280
F139: 0 | G139: 281 | H139: QC code of #0280 | AV139: 282
F140: 0 | G140: 283 | H140: QC code of #0282 | AV140: 284
F141: 0 | G141: 285 | H141: QC code of #0284 | AV141: 286
F142: 0 | G142: 287 | H142: QC code of #0286 | AV142: 288
F143: 0 | G143: 289 | H143: QC code of #0288 | AV143: 290
F144: 0 | G144: 291 | H144: QC code of #0290 | AV144: 292
F145: 0 | G145: 293 | H145: QC code of #0292 | AV145: 294
F146: 0 | G146: 295 | H146: QC code of #0294 | AV146: 296
F147: 0 | G147: 297 | H147: QC code of #0296 | AV147: 298
F148: 0 | G148: 299 | H148: QC code of #0298 | AV148: 300
F149: 0 | G149: 301 | H149: QC code of #0300 | AV149: 302
F150: 0 | G150: 303 | H150: QC code of #0302 | AV150: 304
F151: 0 | G151: 305 | H151: QC code of #0304 | AV151: 306
F152: 0 | G152: 307 | H152: QC code of #0306 | AV152: 308
F153: 0 | G153: 309 | H153: QC code of #0308 | AV153: 310
F154: 0 | G154: 311 | H154: QC code of #0310 | AV154: 312
F155: 0 | G155: 313 | H155: QC code of #0312 | AV155: 314
F156: 0 | G156: 315 | H156: QC code of #0314 | AV156: 316
F157: 0 | G157: 317 | H157: QC code of #0316 | AV157: 318
F158: 0 | G158: 319 | H158: QC code of #0318 | AV158: 320
F159: 0 | G159: 321 | H159: QC code of #0320 | AV159: 322
F160: 0 | G160: 323 | H160: QC code of #0322 | AV160: 324
F161: 0 | G161: 325 | H161: QC code of #0324 | AV161: 326
F162: 0 | G162: 327 | H162: QC code of #0326 | AV162: 328
F163: 0 | G163: 329 | H163: QC code of #0328 | AV163: 330
F164: 0 | G164: 331 | H164: QC code of #0330 | AV164: 332
F165: 0 | G165: 333 | H165: QC code of #0332 | AV165: 334
F166: 0 | G166: 335 | H166: QC code of #0334 | AV166: 336
F167: 0 | G167: 337 | H167: QC code of #0336 | AV167: 338
F168: 0 | G168: 339 | H168: QC code of #0338 | AV168: 340
F169: 0 | G169: 341 | H169: QC code of #0340 | AV169: 342
F170: 0 | G170: 343 | H170: QC code of #0342 | AV170: 344
F171: 0 | G171: 345 | H171: QC code of #0344 | AV171: 346
F172: 0 | G172: 347 | H172: QC code of #0346 | AV172: 348
F173: 0 | G173: 349 | H173: QC code of #0348 | AV173: 350
F174: 0 | G174: 351 | H174: QC code of #0350 | AV174: 352
F175: 0 | G175: 353 | H175: QC code of #0352 | AV175: 354
F176: 0 | G176: 355 | H176: QC code of #0354 | AV176: 356
F177: 0 | G177: 357 | H177: QC code of #0356 | AV177: 358
F178: 0 | G178: 359 | H178: QC code of #0358 | AV178: 360
F179: 0 | G179: 361 | H179: QC code of #0360 | AV179: 362
F180: 0 | G180: 363 | H180: QC code of #0362 | AV180: 364
F181: 0 | G181: 365 | H181: QC code of #0364 | AV181: 366
F182: 0 | G182: 367 | H182: QC code of #0366 | AV182: 368
F183: 0 | G183: 369 | H183: QC code of #0368 | AV183: 370
F184: 0 | G184: 371 | H184: QC code of #0370 | AV184: 372
F185: 0 | G185: 373 | H185: QC code of #0372 | AV185: 374
F186: 0 | G186: 375 | H186: QC code of #0374 | AV186: 376
F187: 0 | G187: 377 | H187: QC code of #0376 | AV187: 378
F188: 0 | G188: 379 | H188: QC code of #0378 | AV188: 380
F189: 0 | G189: 381 | H189: QC code of #0380 | AV189: 382
F190: 0 | G190: 383 | H190: QC code of #0382 | AV190: 384
F191: 0 | G191: 385 | H191: QC code of #0384 | AV191: 386
F192: 0 | G192: 387 | H192: QC code of #0386 | AV192: 388
F193: 0 | G193: 389 | H193: QC code of #0388 | AV193: 390
F194: 0 | G194: 391 | H194: QC code of #0390 | AV194: 392
F195: 0 | G195: 393 | H195: QC code of #0392 | AV195: 394
F196: 0 | G196: 395 | H196: QC code of #0394 | AV196: 396
F197: 0 | G197: 397 | H197: QC code of #0396 | AV197: 398
F198: 0 | G198: 399 | H198: QC code of #0398 | AV198: 400
F199: 0 | G199: 401 | H199: QC code of #0400 | AV199: 402
F200: 0 | G200: 403 | H200: QC code of #0402 | AV200: 404
... 7 more rows
